Workbook

Sheet Auswahlfelder (hidden)
A1: Auswahlfelder Selbstdeklaration
A3: Anzahl Kinder | C3: Stellenprozente | E3: Zivilstand
A4: 0 | C4: 0% | E4: verheiratet
A5: 1 | C5: 5% | E5: in Partnerschaft
A6: 2 | C6: 10% | E6: eingetragene Partnerschaft
A7: 3 | C7: 15% | E7: ledig
A8: 4 | C8: 20% | E8: verwittwet
A9: 5 | C9: 25% | E9: freiwillig getrennt
A10: 6 | C10: 30% | E10: getrennt
A11: 7 | C11: 35% | E11: geschieden
C12: 40%
C13: 45%
C14: 50%
A15: Auswahl | C15: 55%
A16: JA | C16: 60%
A17: NEIN | C17: 65%
C18: 70%
C19: 75%
C20: 80%
C21: 85%
C22: 90%
C23: 95%
C24: 100%
A25: Vermögensgrenze
A26: richtig
A27: nein mehr
A29: Betreuungsumfang | D29: Kontaktaufnahme
A30: 1 | D30: X
A31: 1.5
A32: 2
A33: 2.5
A34: 3
A35: 3.5
A36: 4
A37: 4.5
A38: 5

Sheet Tabelle_Beiträge_Gutscheine (hidden)
B1: Tarifmodell
C3: Krippe
B4: Massgebendes Einkommen | C4: 20% Betreuung | D4: Satz Eigenleistungen | H4: monatlicher Gutschein | I4: monatlicher Gutschein | J4: monatlicher Gutschein | K4: monatlicher Gutschein | L4: monatlicher Gutschein | M4: monatlicher Gutschein | N4: monatlicher Gutschein | O4: monatlicher Gutschein | P4: monatlicher Gutschein
B5: 45000 | C5: 120.00 | F5: 520 | H5: 20% | I5: 30% | J5: 40% | K5: 50% | L5: 60% | M5: 70% | N5: 80% | O5: 90% | P5: 100%
A6: =IF(Selbstdeklaration!F75<B7,F7/20*Selbstdeklaration!$F$76,0) -> 0.00 | B6: Mindestbetrag | C6: 120 / Monat
A7: =IF(Selbstdeklaration!$F$75=B7,F7/20*Selbstdeklaration!$F$76,0) -> 0.00 | B7: 45000 | C7: 120.00 | D7: =+C7/B7 -> 0.2667% | F7: =+$F$5-C7 -> 400.00 | H7: =ROUND($F$5-C7,1) -> 400.00 | I7: =ROUND($F$5*1.5-C7*1.5,1) -> 600.00 | J7: =ROUND($F$5*2-C7*2,1) -> 800.00 | K7: =ROUND($F$5*2.5-C7*2.5,1) -> 1000.00 | L7: =ROUND($F$5*3-C7*3,1) -> 1200.00 | M7: =ROUND($F$5*3.5-C7*3.5,1) -> 1400.00 | N7: =ROUND($F$5*4-C7*4,1) -> 1600.00 | O7: =ROUND($F$5*4.5-C7*4.5,1) -> 1800.00 | P7: =ROUND($F$5*5-C7*5,1) -> 2000.00
A8: =IF(Selbstdeklaration!$F$75=B8,F8/20*Selbstdeklaration!$F$76,0) -> 0.00 | B8: 45500 | C8: =+B8*D8 -> 121.63 | D8: =D7+($D$187-$D$7)/90000*500 -> 0.2673% | F8: =+$F$5-C8 -> 398.37 | H8: =ROUND($F$5-C8,1) -> 398.40 | I8: =ROUND($F$5*1.5-C8*1.5,1) -> 597.60 | J8: =ROUND($F$5*2-C8*2,1) -> 796.70 | K8: =ROUND($F$5*2.5-C8*2.5,1) -> 995.90 | L8: =ROUND($F$5*3-C8*3,1) -> 1195.10 | M8: =ROUND($F$5*3.5-C8*3.5,1) -> 1394.30 | N8: =ROUND($F$5*4-C8*4,1) -> 1593.50 | O8: =ROUND($F$5*4.5-C8*4.5,1) -> 1792.70 | P8: =ROUND($F$5*5-C8*5,1) -> 1991.80
A9: =IF(Selbstdeklaration!$F$75=B9,F9/20*Selbstdeklaration!$F$76,0) -> 0.00 | B9: 46000 | C9: =+B9*D9 -> 123.27 | D9: =D8+($D$187-$D$7)/90000*500 -> 0.2680% | F9: 396.73 | H9: =ROUND($F$5-C9,1) -> 396.70 | I9: 595.10 | J9: 793.50 | K9: 991.80 | L9: 1190.20 | M9: 1388.50 | N9: 1586.90 | O9: 1785.30 | P9: 1983.60
A10: =IF(Selbstdeklaration!$F$75=B10,F10/20*Selbstdeklaration!$F$76,0) -> 0.00 | B10: 46500 | C10: 124.92 | D10: 0.2686% | F10: 395.08 | H10: 395.10 | I10: 592.60 | J10: 790.20 | K10: 987.70 | L10: 1185.20 | M10: 1382.80 | N10: 1580.30 | O10: 1777.90 | P10: 1975.40
A11: =IF(Selbstdeklaration!$F$75=B11,F11/20*Selbstdeklaration!$F$76,0) -> 0.00 | B11: 47000 | C11: 126.57 | D11: 0.2693% | F11: 393.43 | H11: 393.40 | I11: 590.10 | J11: 786.90 | K11: 983.60 | L11: 1180.30 | M11: 1377.00 | N11: 1573.70 | O11: 1770.40 | P11: 1967.10
A12: =IF(Selbstdeklaration!$F$75=B12,F12/20*Selbstdeklaration!$F$76,0) -> 0.00 | B12: 47500 | C12: 128.23 | D12: 0.2700% | F12: 391.77 | H12: 391.80 | I12: 587.70 | J12: 783.50 | K12: 979.40 | L12: 1175.30 | M12: 1371.20 | N12: 1567.10 | O12: 1763.00 | P12: 1958.80
A13: =IF(Selbstdeklaration!$F$75=B13,F13/20*Selbstdeklaration!$F$76,0) -> 0.00 | B13: 48000 | C13: 129.90 | D13: 0.2706% | F13: 390.10 | H13: 390.10 | I13: 585.20 | J13: 780.20 | K13: 975.30 | L13: 1170.30 | M13: 1365.40 | N13: 1560.40 | O13: 1755.50 | P13: 1950.50
A14: =IF(Selbstdeklaration!$F$75=B14,F14/20*Selbstdeklaration!$F$76,0) -> 0.00 | B14: 48500 | C14: 131.57 | D14: 0.2713% | F14: 388.43 | H14: 388.40 | I14: 582.60 | J14: 776.90 | K14: 971.10 | L14: 1165.30 | M14: 1359.50 | N14: 1553.70 | O14: 1747.90 | P14: 1942.20
A15: =IF(Selbstdeklaration!$F$75=B15,F15/20*Selbstdeklaration!$F$76,0) -> 0.00 | B15: 49000 | C15: 133.25 | D15: 0.2719% | F15: 386.75 | H15: 386.80 | I15: 580.10 | J15: 773.50 | K15: 966.90 | L15: 1160.30 | M15: 1353.60 | N15: 1547.00 | O15: 1740.40 | P15: 1933.80
A16: =IF(Selbstdeklaration!$F$75=B16,F16/20*Selbstdeklaration!$F$76,0) -> 0.00 | B16: 49500 | C16: 134.93 | D16: 0.2726% | F16: 385.07 | H16: 385.10 | I16: 577.60 | J16: 770.10 | K16: 962.70 | L16: 1155.20 | M16: 1347.70 | N16: 1540.30 | O16: 1732.80 | P16: 1925.30
A17: =IF(Selbstdeklaration!$F$75=B17,F17/20*Selbstdeklaration!$F$76,0) -> 0.00 | B17: 50000 | C17: 136.63 | D17: 0.2733% | F17: 383.37 | H17: 383.40 | I17: 575.10 | J17: 766.70 | K17: 958.40 | L17: 1150.10 | M17: 1341.80 | N17: 1533.50 | O17: 1725.20 | P17: 1916.90
A18: =IF(Selbstdeklaration!$F$75=B18,F18/20*Selbstdeklaration!$F$76,0) -> 0.00 | B18: 50500 | C18: 138.32 | D18: 0.2739% | F18: 381.68 | H18: 381.70 | I18: 572.50 | J18: 763.40 | K18: 954.20 | L18: 1145.00 | M18: 1335.90 | N18: 1526.70 | O18: 1717.50 | P18: 1908.40
A19: =IF(Selbstdeklaration!$F$75=B19,F19/20*Selbstdeklaration!$F$76,0) -> 0.00 | B19: 51000 | C19: 140.03 | D19: 0.2746% | F19: 379.97 | H19: 380.00 | I19: 570.00 | J19: 759.90 | K19: 949.90 | L19: 1139.90 | M19: 1329.90 | N19: 1519.90 | O19: 1709.90 | P19: 1899.80
A20: =IF(Selbstdeklaration!$F$75=B20,F20/20*Selbstdeklaration!$F$76,0) -> 0.00 | B20: 51500 | C20: 141.74 | D20: 0.2752% | F20: 378.26 | H20: 378.30 | I20: 567.40 | J20: 756.50 | K20: 945.60 | L20: 1134.80 | M20: 1323.90 | N20: 1513.00 | O20: 1702.20 | P20: 1891.30
A21: =IF(Selbstdeklaration!$F$75=B21,F21/20*Selbstdeklaration!$F$76,0) -> 0.00 | B21: 52000 | C21: 143.46 | D21: 0.2759% | F21: 376.54 | H21: 376.50 | I21: 564.80 | J21: 753.10 | K21: 941.30 | L21: 1129.60 | M21: 1317.90 | N21: 1506.20 | O21: 1694.40 | P21: 1882.70
A22: =IF(Selbstdeklaration!$F$75=B22,F22/20*Selbstdeklaration!$F$76,0) -> 0.00 | B22: 52500 | C22: 145.19 | D22: 0.2765% | F22: 374.81 | H22: 374.80 | I22: 562.20 | J22: 749.60 | K22: 937.00 | L22: 1124.40 | M22: 1311.80 | N22: 1499.30 | O22: 1686.70 | P22: 1874.10
A23: =IF(Selbstdeklaration!$F$75=B23,F23/20*Selbstdeklaration!$F$76,0) -> 0.00 | B23: 53000 | C23: 146.92 | D23: 0.2772% | F23: 373.08 | H23: 373.10 | I23: 559.60 | J23: 746.20 | K23: 932.70 | L23: 1119.20 | M23: 1305.80 | N23: 1492.30 | O23: 1678.90 | P23: 1865.40
A24: =IF(Selbstdeklaration!$F$75=B24,F24/20*Selbstdeklaration!$F$76,0) -> 0.00 | B24: 53500 | C24: 148.66 | D24: 0.2779% | F24: 371.34 | H24: 371.30 | I24: 557.00 | J24: 742.70 | K24: 928.40 | L24: 1114.00 | M24: 1299.70 | N24: 1485.40 | O24: 1671.00 | P24: 1856.70
A25: =IF(Selbstdeklaration!$F$75=B25,F25/20*Selbstdeklaration!$F$76,0) -> 0.00 | B25: 54000 | C25: 150.40 | D25: 0.2785% | F25: 369.60 | H25: 369.60 | I25: 554.40 | J25: 739.20 | K25: 924.00 | L25: 1108.80 | M25: 1293.60 | N25: 1478.40 | O25: 1663.20 | P25: 1848.00
A26: =IF(Selbstdeklaration!$F$75=B26,F26/20*Selbstdeklaration!$F$76,0) -> 0.00 | B26: 54500 | C26: 152.15 | D26: 0.2792% | F26: 367.85 | H26: 367.80 | I26: 551.80 | J26: 735.70 | K26: 919.60 | L26: 1103.50 | M26: 1287.50 | N26: 1471.40 | O26: 1655.30 | P26: 1839.20
A27: =IF(Selbstdeklaration!$F$75=B27,F27/20*Selbstdeklaration!$F$76,0) -> 0.00 | B27: 55000 | C27: 153.91 | D27: 0.2798% | F27: 366.09 | H27: 366.10 | I27: 549.10 | J27: 732.20 | K27: 915.20 | L27: 1098.30 | M27: 1281.30 | N27: 1464.40 | O27: 1647.40 | P27: 1830.40
A28: =IF(Selbstdeklaration!$F$75=B28,F28/20*Selbstdeklaration!$F$76,0) -> 0.00 | B28: 55500 | C28: 155.68 | D28: 0.2805% | F28: 364.32 | H28: 364.30 | I28: 546.50 | J28: 728.60 | K28: 910.80 | L28: 1093.00 | M28: 1275.10 | N28: 1457.30 | O28: 1639.50 | P28: 1821.60
A29: =IF(Selbstdeklaration!$F$75=B29,F29/20*Selbstdeklaration!$F$76,0) -> 0.00 | B29: 56000 | C29: 157.45 | D29: 0.2812% | F29: 362.55 | H29: 362.60 | I29: 543.80 | J29: 725.10 | K29: 906.40 | L29: 1087.70 | M29: 1268.90 | N29: 1450.20 | O29: 1631.50 | P29: 1812.80
A30: =IF(Selbstdeklaration!$F$75=B30,F30/20*Selbstdeklaration!$F$76,0) -> 0.00 | B30: 56500 | C30: 159.22 | D30: 0.2818% | F30: 360.78 | H30: 360.80 | I30: 541.20 | J30: 721.60 | K30: 901.90 | L30: 1082.30 | M30: 1262.70 | N30: 1443.10 | O30: 1623.50 | P30: 1803.90
A31: =IF(Selbstdeklaration!$F$75=B31,F31/20*Selbstdeklaration!$F$76,0) -> 0.00 | B31: 57000 | C31: 161.01 | D31: 0.2825% | F31: 358.99 | H31: 359.00 | I31: 538.50 | J31: 718.00 | K31: 897.50 | L31: 1077.00 | M31: 1256.50 | N31: 1436.00 | O31: 1615.50 | P31: 1795.00
A32: =IF(Selbstdeklaration!$F$75=B32,F32/20*Selbstdeklaration!$F$76,0) -> 0.00 | B32: 57500 | C32: 162.80 | D32: 0.2831% | F32: 357.20 | H32: 357.20 | I32: 535.80 | J32: 714.40 | K32: 893.00 | L32: 1071.60 | M32: 1250.20 | N32: 1428.80 | O32: 1607.40 | P32: 1786.00
A33: =IF(Selbstdeklaration!$F$75=B33,F33/20*Selbstdeklaration!$F$76,0) -> 0.00 | B33: 58000 | C33: 164.60 | D33: 0.2838% | F33: 355.40 | H33: 355.40 | I33: 533.10 | J33: 710.80 | K33: 888.50 | L33: 1066.20 | M33: 1243.90 | N33: 1421.60 | O33: 1599.30 | P33: 1777.00
A34: =IF(Selbstdeklaration!$F$75=B34,F34/20*Selbstdeklaration!$F$76,0) -> 0.00 | B34: 58500 | C34: 166.40 | D34: 0.2844% | F34: 353.60 | H34: 353.60 | I34: 530.40 | J34: 707.20 | K34: 884.00 | L34: 1060.80 | M34: 1237.60 | N34: 1414.40 | O34: 1591.20 | P34: 1768.00
A35: =IF(Selbstdeklaration!$F$75=B35,F35/20*Selbstdeklaration!$F$76,0) -> 0.00 | B35: 59000 | C35: 168.21 | D35: 0.2851% | F35: 351.79 | H35: 351.80 | I35: 527.70 | J35: 703.60 | K35: 879.50 | L35: 1055.40 | M35: 1231.30 | N35: 1407.20 | O35: 1583.00 | P35: 1758.90
A36: =IF(Selbstdeklaration!$F$75=B36,F36/20*Selbstdeklaration!$F$76,0) -> 0.00 | B36: 59500 | C36: 170.03 | D36: 0.2858% | F36: 349.97 | H36: 350.00 | I36: 525.00 | J36: 699.90 | K36: 874.90 | L36: 1049.90 | M36: 1224.90 | N36: 1399.90 | O36: 1574.90 | P36: 1749.90
A37: =IF(Selbstdeklaration!$F$75=B37,F37/20*Selbstdeklaration!$F$76,0) -> 0.00 | B37: 60000 | C37: 171.85 | D37: 0.2864% | F37: 348.15 | H37: 348.10 | I37: 522.20 | J37: 696.30 | K37: 870.40 | L37: 1044.40 | M37: 1218.50 | N37: 1392.60 | O37: 1566.70 | P37: 1740.70
A38: =IF(Selbstdeklaration!$F$75=B38,F38/20*Selbstdeklaration!$F$76,0) -> 0.00 | B38: 60500 | C38: 173.68 | D38: 0.2871% | F38: 346.32 | H38: 346.30 | I38: 519.50 | J38: 692.60 | K38: 865.80 | L38: 1038.90 | M38: 1212.10 | N38: 1385.30 | O38: 1558.40 | P38: 1731.60
A39: =IF(Selbstdeklaration!$F$75=B39,F39/20*Selbstdeklaration!$F$76,0) -> 0.00 | B39: 61000 | C39: 175.52 | D39: 0.2877% | F39: 344.48 | H39: 344.50 | I39: 516.70 | J39: 689.00 | K39: 861.20 | L39: 1033.40 | M39: 1205.70 | N39: 1377.90 | O39: 1550.20 | P39: 1722.40
A40: =IF(Selbstdeklaration!$F$75=B40,F40/20*Selbstdeklaration!$F$76,0) -> 0.00 | B40: 61500 | C40: 177.36 | D40: 0.2884% | F40: 342.64 | H40: 342.60 | I40: 514.00 | J40: 685.30 | K40: 856.60 | L40: 1027.90 | M40: 1199.20 | N40: 1370.50 | O40: 1541.90 | P40: 1713.20
A41: =IF(Selbstdeklaration!$F$75=B41,F41/20*Selbstdeklaration!$F$76,0) -> 0.00 | B41: 62000 | C41: 179.21 | D41: 0.2891% | F41: 340.79 | H41: 340.80 | I41: 511.20 | J41: 681.60 | K41: 852.00 | L41: 1022.40 | M41: 1192.70 | N41: 1363.10 | O41: 1533.50 | P41: 1703.90
A42: =IF(Selbstdeklaration!$F$75=B42,F42/20*Selbstdeklaration!$F$76,0) -> 0.00 | B42: 62500 | C42: 181.07 | D42: 0.2897% | F42: 338.93 | H42: 338.90 | I42: 508.40 | J42: 677.90 | K42: 847.30 | L42: 1016.80 | M42: 1186.20 | N42: 1355.70 | O42: 1525.20 | P42: 1694.60
A43: =IF(Selbstdeklaration!$F$75=B43,F43/20*Selbstdeklaration!$F$76,0) -> 0.00 | B43: 63000 | C43: 182.94 | D43: 0.2904% | F43: 337.06 | H43: 337.10 | I43: 505.60 | J43: 674.10 | K43: 842.70 | L43: 1011.20 | M43: 1179.70 | N43: 1348.30 | O43: 1516.80 | P43: 1685.30
A44: =IF(Selbstdeklaration!$F$75=B44,F44/20*Selbstdeklaration!$F$76,0) -> 0.00 | B44: 63500 | C44: 184.81 | D44: 0.2910% | F44: 335.19 | H44: 335.20 | I44: 502.80 | J44: 670.40 | K44: 838.00 | L44: 1005.60 | M44: 1173.20 | N44: 1340.80 | O44: 1508.40 | P44: 1676.00
A45: =IF(Selbstdeklaration!$F$75=B45,F45/20*Selbstdeklaration!$F$76,0) -> 0.00 | B45: 64000 | C45: 186.68 | D45: 0.2917% | F45: 333.32 | H45: 333.30 | I45: 500.00 | J45: 666.60 | K45: 833.30 | L45: 1000.00 | M45: 1166.60 | N45: 1333.30 | O45: 1499.90 | P45: 1666.60
A46: =IF(Selbstdeklaration!$F$75=B46,F46/20*Selbstdeklaration!$F$76,0) -> 0.00 | B46: 64500 | C46: 188.57 | D46: 0.2923% | F46: 331.43 | H46: 331.40 | I46: 497.20 | J46: 662.90 | K46: 828.60 | L46: 994.30 | M46: 1160.00 | N46: 1325.70 | O46: 1491.50 | P46: 1657.20
A47: =IF(Selbstdeklaration!$F$75=B47,F47/20*Selbstdeklaration!$F$76,0) -> 0.00 | B47: 65000 | C47: 190.45 | D47: 0.2930% | F47: 329.55 | H47: 329.50 | I47: 494.30 | J47: 659.10 | K47: 823.90 | L47: 988.60 | M47: 1153.40 | N47: 1318.20 | O47: 1483.00 | P47: 1647.70
A48: =IF(Selbstdeklaration!$F$75=B48,F48/20*Selbstdeklaration!$F$76,0) -> 0.00 | B48: 65500 | C48: 192.35 | D48: 0.2937% | F48: 327.65 | H48: 327.60 | I48: 491.50 | J48: 655.30 | K48: 819.10 | L48: 982.90 | M48: 1146.80 | N48: 1310.60 | O48: 1474.40 | P48: 1638.20
A49: =IF(Selbstdeklaration!$F$75=B49,F49/20*Selbstdeklaration!$F$76,0) -> 0.00 | B49: 66000 | C49: 194.25 | D49: 0.2943% | F49: 325.75 | H49: 325.70 | I49: 488.60 | J49: 651.50 | K49: 814.40 | L49: 977.20 | M49: 1140.10 | N49: 1303.00 | O49: 1465.90 | P49: 1628.70
A50: =IF(Selbstdeklaration!$F$75=B50,F50/20*Selbstdeklaration!$F$76,0) -> 0.00 | B50: 66500 | C50: 196.16 | D50: 0.2950% | F50: 323.84 | H50: 323.80 | I50: 485.80 | J50: 647.70 | K50: 809.60 | L50: 971.50 | M50: 1133.40 | N50: 1295.30 | O50: 1457.30 | P50: 1619.20
A51: =IF(Selbstdeklaration!$F$75=B51,F51/20*Selbstdeklaration!$F$76,0) -> 0.00 | B51: 67000 | C51: 198.08 | D51: 0.2956% | F51: 321.92 | H51: 321.90 | I51: 482.90 | J51: 643.80 | K51: 804.80 | L51: 965.80 | M51: 1126.70 | N51: 1287.70 | O51: 1448.60 | P51: 1609.60
A52: =IF(Selbstdeklaration!$F$75=B52,F52/20*Selbstdeklaration!$F$76,0) -> 0.00 | B52: 67500 | C52: 200.00 | D52: 0.2963% | F52: 320.00 | H52: 320.00 | I52: 480.00 | J52: 640.00 | K52: 800.00 | L52: 960.00 | M52: 1120.00 | N52: 1280.00 | O52: 1440.00 | P52: 1600.00
A53: =IF(Selbstdeklaration!$F$75=B53,F53/20*Selbstdeklaration!$F$76,0) -> 0.00 | B53: 68000 | C53: 201.93 | D53: 0.2970% | F53: 318.07 | H53: 318.10 | I53: 477.10 | J53: 636.10 | K53: 795.20 | L53: 954.20 | M53: 1113.20 | N53: 1272.30 | O53: 1431.30 | P53: 1590.30
A54: =IF(Selbstdeklaration!$F$75=B54,F54/20*Selbstdeklaration!$F$76,0) -> 0.00 | B54: 68500 | C54: 203.87 | D54: 0.2976% | F54: 316.13 | H54: 316.10 | I54: 474.20 | J54: 632.30 | K54: 790.30 | L54: 948.40 | M54: 1106.50 | N54: 1264.50 | O54: 1422.60 | P54: 1580.70
A55: =IF(Selbstdeklaration!$F$75=B55,F55/20*Selbstdeklaration!$F$76,0) -> 0.00 | B55: 69000 | C55: 205.81 | D55: 0.2983% | F55: 314.19 | H55: 314.20 | I55: 471.30 | J55: 628.40 | K55: 785.50 | L55: 942.60 | M55: 1099.70 | N55: 1256.80 | O55: 1413.90 | P55: 1570.90
A56: =IF(Selbstdeklaration!$F$75=B56,F56/20*Selbstdeklaration!$F$76,0) -> 0.00 | B56: 69500 | C56: 207.76 | D56: 0.2989% | F56: 312.24 | H56: 312.20 | I56: 468.40 | J56: 624.50 | K56: 780.60 | L56: 936.70 | M56: 1092.80 | N56: 1249.00 | O56: 1405.10 | P56: 1561.20
A57: =IF(Selbstdeklaration!$F$75=B57,F57/20*Selbstdeklaration!$F$76,0) -> 0.00 | B57: 70000 | C57: 209.71 | D57: 0.2996% | F57: 310.29 | H57: 310.30 | I57: 465.40 | J57: 620.60 | K57: 775.70 | L57: 930.90 | M57: 1086.00 | N57: 1241.10 | O57: 1396.30 | P57: 1551.40
A58: =IF(Selbstdeklaration!$F$75=B58,F58/20*Selbstdeklaration!$F$76,0) -> 0.00 | B58: 70500 | C58: 211.68 | D58: 0.3003% | F58: 308.32 | H58: 308.30 | I58: 462.50 | J58: 616.60 | K58: 770.80 | L58: 925.00 | M58: 1079.10 | N58: 1233.30 | O58: 1387.50 | P58: 1541.60
A59: =IF(Selbstdeklaration!$F$75=B59,F59/20*Selbstdeklaration!$F$76,0) -> 0.00 | B59: 71000 | C59: 213.65 | D59: 0.3009% | F59: 306.35 | H59: 306.40 | I59: 459.50 | J59: 612.70 | K59: 765.90 | L59: 919.10 | M59: 1072.20 | N59: 1225.40 | O59: 1378.60 | P59: 1531.80
A60: =IF(Selbstdeklaration!$F$75=B60,F60/20*Selbstdeklaration!$F$76,0) -> 0.00 | B60: 71500 | C60: 215.62 | D60: 0.3016% | F60: 304.38 | H60: 304.40 | I60: 456.60 | J60: 608.80 | K60: 760.90 | L60: 913.10 | M60: 1065.30 | N60: 1217.50 | O60: 1369.70 | P60: 1521.90
A61: =IF(Selbstdeklaration!$F$75=B61,F61/20*Selbstdeklaration!$F$76,0) -> 0.00 | B61: 72000 | C61: 217.60 | D61: 0.3022% | F61: 302.40 | H61: 302.40 | I61: 453.60 | J61: 604.80 | K61: 756.00 | L61: 907.20 | M61: 1058.40 | N61: 1209.60 | O61: 1360.80 | P61: 1512.00
A62: =IF(Selbstdeklaration!$F$75=B62,F62/20*Selbstdeklaration!$F$76,0) -> 0.00 | B62: 72500 | C62: 219.59 | D62: 0.3029% | F62: 300.41 | H62: 300.40 | I62: 450.60 | J62: 600.80 | K62: 751.00 | L62: 901.20 | M62: 1051.40 | N62: 1201.60 | O62: 1351.80 | P62: 1502.00
A63: =IF(Selbstdeklaration!$F$75=B63,F63/20*Selbstdeklaration!$F$76,0) -> 0.00 | B63: 73000 | C63: 221.59 | D63: 0.3035% | F63: 298.41 | H63: 298.40 | I63: 447.60 | J63: 596.80 | K63: 746.00 | L63: 895.20 | M63: 1044.40 | N63: 1193.70 | O63: 1342.90 | P63: 1492.10
A64: =IF(Selbstdeklaration!$F$75=B64,F64/20*Selbstdeklaration!$F$76,0) -> 0.00 | B64: 73500 | C64: 223.59 | D64: 0.3042% | F64: 296.41 | H64: 296.40 | I64: 444.60 | J64: 592.80 | K64: 741.00 | L64: 889.20 | M64: 1037.40 | N64: 1185.60 | O64: 1333.90 | P64: 1482.10
A65: =IF(Selbstdeklaration!$F$75=B65,F65/20*Selbstdeklaration!$F$76,0) -> 0.00 | B65: 74000 | C65: 225.60 | D65: 0.3049% | F65: 294.40 | H65: 294.40 | I65: 441.60 | J65: 588.80 | K65: 736.00 | L65: 883.20 | M65: 1030.40 | N65: 1177.60 | O65: 1324.80 | P65: 1472.00
A66: =IF(Selbstdeklaration!$F$75=B66,F66/20*Selbstdeklaration!$F$76,0) -> 0.00 | B66: 74500 | C66: 227.61 | D66: 0.3055% | F66: 292.39 | H66: 292.40 | I66: 438.60 | J66: 584.80 | K66: 731.00 | L66: 877.20 | M66: 1023.40 | N66: 1169.60 | O66: 1315.70 | P66: 1461.90
A67: =IF(Selbstdeklaration!$F$75=B67,F67/20*Selbstdeklaration!$F$76,0) -> 0.00 | B67: 75000 | C67: 229.63 | D67: 0.3062% | F67: 290.37 | H67: 290.40 | I67: 435.60 | J67: 580.70 | K67: 725.90 | L67: 871.10 | M67: 1016.30 | N67: 1161.50 | O67: 1306.70 | P67: 1451.80
A68: =IF(Selbstdeklaration!$F$75=B68,F68/20*Selbstdeklaration!$F$76,0) -> 0.00 | B68: 75500 | C68: 231.66 | D68: 0.3068% | F68: 288.34 | H68: 288.30 | I68: 432.50 | J68: 576.70 | K68: 720.80 | L68: 865.00 | M68: 1009.20 | N68: 1153.40 | O68: 1297.50 | P68: 1441.70
A69: =IF(Selbstdeklaration!$F$75=B69,F69/20*Selbstdeklaration!$F$76,0) -> 0.00 | B69: 76000 | C69: 233.70 | D69: 0.3075% | F69: 286.30 | H69: 286.30 | I69: 429.50 | J69: 572.60 | K69: 715.80 | L69: 858.90 | M69: 1002.10 | N69: 1145.20 | O69: 1288.40 | P69: 1431.50
A70: =IF(Selbstdeklaration!$F$75=B70,F70/20*Selbstdeklaration!$F$76,0) -> 0.00 | B70: 76500 | C70: 235.74 | D70: 0.3082% | F70: 284.26 | H70: 284.30 | I70: 426.40 | J70: 568.50 | K70: 710.70 | L70: 852.80 | M70: 994.90 | N70: 1137.10 | O70: 1279.20 | P70: 1421.30
A71: =IF(Selbstdeklaration!$F$75=B71,F71/20*Selbstdeklaration!$F$76,0) -> 0.00 | B71: 77000 | C71: 237.79 | D71: 0.3088% | F71: 282.21 | H71: 282.20 | I71: 423.30 | J71: 564.40 | K71: 705.50 | L71: 846.60 | M71: 987.80 | N71: 1128.90 | O71: 1270.00 | P71: 1411.10
A72: =IF(Selbstdeklaration!$F$75=B72,F72/20*Selbstdeklaration!$F$76,0) -> 0.00 | B72: 77500 | C72: 239.84 | D72: 0.3095% | F72: =+$F$5-C72 -> 280.16 | H72: 280.20 | I72: =ROUND($F$5*1.5-C72*1.5,1) -> 420.20 | J72: =ROUND($F$5*2-C72*2,1) -> 560.30 | K72: =ROUND($F$5*2.5-C72*2.5,1) -> 700.40 | L72: =ROUND($F$5*3-C72*3,1) -> 840.50 | M72: =ROUND($F$5*3.5-C72*3.5,1) -> 980.60 | N72: =ROUND($F$5*4-C72*4,1) -> 1120.60 | O72: =ROUND($F$5*4.5-C72*4.5,1) -> 1260.70 | P72: =ROUND($F$5*5-C72*5,1) -> 1400.80
A73: =IF(Selbstdeklaration!$F$75=B73,F73/20*Selbstdeklaration!$F$76,0) -> 0.00 | B73: 78000 | C73: =+B73*D73 -> 241.90 | D73: =D72+($D$187-$D$7)/90000*500 -> 0.3101% | F73: 278.10 | H73: =ROUND($F$5-C73,1) -> 278.10 | I73: 417.10 | J73: 556.20 | K73: 695.20 | L73: 834.30 | M73: 973.30 | N73: 1112.40 | O73: 1251.40 | P73: 1390.50
A74: =IF(Selbstdeklaration!$F$75=B74,F74/20*Selbstdeklaration!$F$76,0) -> 0.00 | B74: 78500 | C74: 243.97 | D74: 0.3108% | F74: 276.03 | H74: 276.00 | I74: 414.00 | J74: 552.10 | K74: 690.10 | L74: 828.10 | M74: 966.10 | N74: 1104.10 | O74: 1242.10 | P74: 1380.20
A75: =IF(Selbstdeklaration!$F$75=B75,F75/20*Selbstdeklaration!$F$76,0) -> 0.00 | B75: 79000 | C75: 246.04 | D75: 0.3114% | F75: 273.96 | H75: 274.00 | I75: 410.90 | J75: 547.90 | K75: 684.90 | L75: 821.90 | M75: 958.90 | N75: 1095.80 | O75: 1232.80 | P75: 1369.80
A76: =IF(Selbstdeklaration!$F$75=B76,F76/20*Selbstdeklaration!$F$76,0) -> 0.00 | B76: 79500 | C76: 248.12 | D76: 0.3121% | F76: 271.88 | H76: 271.90 | I76: 407.80 | J76: 543.80 | K76: 679.70 | L76: 815.60 | M76: 951.60 | N76: 1087.50 | O76: 1223.40 | P76: 1359.40
A77: =IF(Selbstdeklaration!$F$75=B77,F77/20*Selbstdeklaration!$F$76,0) -> 0.00 | B77: 80000 | C77: 250.21 | D77: 0.3128% | F77: 269.79 | H77: 269.80 | I77: 404.70 | J77: 539.60 | K77: 674.50 | L77: 809.40 | M77: 944.30 | N77: 1079.20 | O77: 1214.10 | P77: 1348.90
A78: =IF(Selbstdeklaration!$F$75=B78,F78/20*Selbstdeklaration!$F$76,0) -> 0.00 | B78: 80500 | C78: 252.30 | D78: 0.3134% | F78: 267.70 | H78: 267.70 | I78: 401.50 | J78: 535.40 | K78: 669.20 | L78: 803.10 | M78: 936.90 | N78: 1070.80 | O78: 1204.60 | P78: 1338.50
A79: =IF(Selbstdeklaration!$F$75=B79,F79/20*Selbstdeklaration!$F$76,0) -> 0.00 | B79: 81000 | C79: 254.40 | D79: 0.3141% | F79: 265.60 | H79: 265.60 | I79: 398.40 | J79: 531.20 | K79: 664.00 | L79: 796.80 | M79: 929.60 | N79: 1062.40 | O79: 1195.20 | P79: 1328.00
A80: =IF(Selbstdeklaration!$F$75=B80,F80/20*Selbstdeklaration!$F$76,0) -> 0.00 | B80: 81500 | C80: 256.51 | D80: 0.3147% | F80: 263.49 | H80: 263.50 | I80: 395.20 | J80: 527.00 | K80: 658.70 | L80: 790.50 | M80: 922.20 | N80: 1054.00 | O80: 1185.70 | P80: 1317.40
A81: =IF(Selbstdeklaration!$F$75=B81,F81/20*Selbstdeklaration!$F$76,0) -> 0.00 | B81: 82000 | C81: 258.63 | D81: 0.3154% | F81: 261.37 | H81: 261.40 | I81: 392.10 | J81: 522.70 | K81: 653.40 | L81: 784.10 | M81: 914.80 | N81: 1045.50 | O81: 1176.20 | P81: 1306.90
A82: =IF(Selbstdeklaration!$F$75=B82,F82/20*Selbstdeklaration!$F$76,0) -> 0.00 | B82: 82500 | C82: 260.75 | D82: 0.3161% | F82: 259.25 | H82: 259.30 | I82: 388.90 | J82: 518.50 | K82: 648.10 | L82: 777.80 | M82: 907.40 | N82: 1037.00 | O82: 1166.60 | P82: 1296.30
A83: =IF(Selbstdeklaration!$F$75=B83,F83/20*Selbstdeklaration!$F$76,0) -> 0.00 | B83: 83000 | C83: 262.87 | D83: 0.3167% | F83: 257.13 | H83: 257.10 | I83: 385.70 | J83: 514.30 | K83: 642.80 | L83: 771.40 | M83: 899.90 | N83: 1028.50 | O83: 1157.10 | P83: 1285.60
A84: =IF(Selbstdeklaration!$F$75=B84,F84/20*Selbstdeklaration!$F$76,0) -> 0.00 | B84: 83500 | C84: 265.01 | D84: 0.3174% | F84: 254.99 | H84: 255.00 | I84: 382.50 | J84: 510.00 | K84: 637.50 | L84: 765.00 | M84: 892.50 | N84: 1020.00 | O84: 1147.50 | P84: 1275.00
A85: =IF(Selbstdeklaration!$F$75=B85,F85/20*Selbstdeklaration!$F$76,0) -> 0.00 | B85: 84000 | C85: 267.15 | D85: 0.3180% | F85: 252.85 | H85: 252.90 | I85: 379.30 | J85: 505.70 | K85: 632.10 | L85: 758.60 | M85: 885.00 | N85: 1011.40 | O85: 1137.80 | P85: 1264.30
A86: =IF(Selbstdeklaration!$F$75=B86,F86/20*Selbstdeklaration!$F$76,0) -> 0.00 | B86: 84500 | C86: 269.29 | D86: 0.3187% | F86: 250.71 | H86: 250.70 | I86: 376.10 | J86: 501.40 | K86: 626.80 | L86: 752.10 | M86: 877.50 | N86: 1002.80 | O86: 1128.20 | P86: 1253.50
A87: =IF(Selbstdeklaration!$F$75=B87,F87/20*Selbstdeklaration!$F$76,0) -> 0.00 | B87: 85000 | C87: 271.45 | D87: 0.3193% | F87: 248.55 | H87: 248.60 | I87: 372.80 | J87: 497.10 | K87: 621.40 | L87: 745.70 | M87: 869.90 | N87: 994.20 | O87: 1118.50 | P87: 1242.80
A88: =IF(Selbstdeklaration!$F$75=B88,F88/20*Selbstdeklaration!$F$76,0) -> 0.00 | B88: 85500 | C88: 273.61 | D88: 0.3200% | F88: 246.39 | H88: 246.40 | I88: 369.60 | J88: 492.80 | K88: 616.00 | L88: 739.20 | M88: 862.40 | N88: 985.60 | O88: 1108.80 | P88: 1232.00
A89: =IF(Selbstdeklaration!$F$75=B89,F89/20*Selbstdeklaration!$F$76,0) -> 0.00 | B89: 86000 | C89: 275.77 | D89: 0.3207% | F89: 244.23 | H89: 244.20 | I89: 366.30 | J89: 488.50 | K89: 610.60 | L89: 732.70 | M89: 854.80 | N89: 976.90 | O89: 1099.00 | P89: 1221.10
A90: =IF(Selbstdeklaration!$F$75=B90,F90/20*Selbstdeklaration!$F$76,0) -> 0.00 | B90: 86500 | C90: 277.95 | D90: 0.3213% | F90: 242.05 | H90: 242.10 | I90: 363.10 | J90: 484.10 | K90: 605.10 | L90: 726.20 | M90: 847.20 | N90: 968.20 | O90: 1089.20 | P90: 1210.30
A91: =IF(Selbstdeklaration!$F$75=B91,F91/20*Selbstdeklaration!$F$76,0) -> 0.00 | B91: 87000 | C91: 280.12 | D91: 0.3220% | F91: 239.88 | H91: 239.90 | I91: 359.80 | J91: 479.80 | K91: 599.70 | L91: 719.60 | M91: 839.60 | N91: 959.50 | O91: 1079.40 | P91: 1199.40
A92: =IF(Selbstdeklaration!$F$75=B92,F92/20*Selbstdeklaration!$F$76,0) -> 0.00 | B92: 87500 | C92: 282.31 | D92: 0.3226% | F92: 237.69 | H92: 237.70 | I92: 356.50 | J92: 475.40 | K92: 594.20 | L92: 713.10 | M92: 831.90 | N92: 950.80 | O92: 1069.60 | P92: 1188.40
A93: =IF(Selbstdeklaration!$F$75=B93,F93/20*Selbstdeklaration!$F$76,0) -> 0.00 | B93: 88000 | C93: 284.50 | D93: 0.3233% | F93: 235.50 | H93: 235.50 | I93: 353.20 | J93: 471.00 | K93: 588.70 | L93: 706.50 | M93: 824.20 | N93: 942.00 | O93: 1059.70 | P93: 1177.50
A94: =IF(Selbstdeklaration!$F$75=B94,F94/20*Selbstdeklaration!$F$76,0) -> 0.00 | B94: 88500 | C94: 286.70 | D94: 0.3240% | F94: 233.30 | H94: 233.30 | I94: 349.90 | J94: 466.60 | K94: 583.20 | L94: 699.90 | M94: 816.50 | N94: 933.20 | O94: 1049.80 | P94: 1166.50
A95: =IF(Selbstdeklaration!$F$75=B95,F95/20*Selbstdeklaration!$F$76,0) -> 0.00 | B95: 89000 | C95: 288.91 | D95: 0.3246% | F95: 231.09 | H95: 231.10 | I95: 346.60 | J95: 462.20 | K95: 577.70 | L95: 693.30 | M95: 808.80 | N95: 924.40 | O95: 1039.90 | P95: 1155.50
A96: =IF(Selbstdeklaration!$F$75=B96,F96/20*Selbstdeklaration!$F$76,0) -> 0.00 | B96: 89500 | C96: 291.12 | D96: 0.3253% | F96: 228.88 | H96: 228.90 | I96: 343.30 | J96: 457.80 | K96: 572.20 | L96: 686.60 | M96: 801.10 | N96: 915.50 | O96: 1030.00 | P96: 1144.40
A97: =IF(Selbstdeklaration!$F$75=B97,F97/20*Selbstdeklaration!$F$76,0) -> 0.00 | B97: 90000 | C97: 293.34 | D97: 0.3259% | F97: 226.66 | H97: 226.70 | I97: 340.00 | J97: 453.30 | K97: 566.60 | L97: 680.00 | M97: 793.30 | N97: 906.60 | O97: 1020.00 | P97: 1133.30
A98: =IF(Selbstdeklaration!$F$75=B98,F98/20*Selbstdeklaration!$F$76,0) -> 0.00 | B98: 90500 | C98: 295.57 | D98: 0.3266% | F98: 224.43 | H98: 224.40 | I98: 336.70 | J98: 448.90 | K98: 561.10 | L98: 673.30 | M98: 785.50 | N98: 897.70 | O98: 1010.00 | P98: 1122.20
A99: =IF(Selbstdeklaration!$F$75=B99,F99/20*Selbstdeklaration!$F$76,0) -> 0.00 | B99: 91000 | C99: 297.80 | D99: 0.3273% | F99: 222.20 | H99: 222.20 | I99: 333.30 | J99: 444.40 | K99: 555.50 | L99: 666.60 | M99: 777.70 | N99: 888.80 | O99: 999.90 | P99: 1111.00
A100: =IF(Selbstdeklaration!$F$75=B100,F100/20*Selbstdeklaration!$F$76,0) -> 0.00 | B100: 91500 | C100: 300.04 | D100: 0.3279% | F100: 219.96 | H100: 220.00 | I100: 329.90 | J100: 439.90 | K100: 549.90 | L100: 659.90 | M100: 769.90 | N100: 879.90 | O100: 989.80 | P100: 1099.80
A101: =IF(Selbstdeklaration!$F$75=B101,F101/20*Selbstdeklaration!$F$76,0) -> 0.00 | B101: 92000 | C101: 302.28 | D101: 0.3286% | F101: 217.72 | H101: 217.70 | I101: 326.60 | J101: 435.40 | K101: 544.30 | L101: 653.20 | M101: 762.00 | N101: 870.90 | O101: 979.70 | P101: 1088.60
A102: =IF(Selbstdeklaration!$F$75=B102,F102/20*Selbstdeklaration!$F$76,0) -> 0.00 | B102: 92500 | C102: 304.53 | D102: 0.3292% | F102: 215.47 | H102: 215.50 | I102: 323.20 | J102: 430.90 | K102: 538.70 | L102: 646.40 | M102: 754.10 | N102: 861.90 | O102: 969.60 | P102: 1077.30
A103: =IF(Selbstdeklaration!$F$75=B103,F103/20*Selbstdeklaration!$F$76,0) -> 0.00 | B103: 93000 | C103: 306.79 | D103: 0.3299% | F103: 213.21 | H103: 213.20 | I103: 319.80 | J103: 426.40 | K103: 533.00 | L103: 639.60 | M103: 746.20 | N103: 852.80 | O103: 959.40 | P103: 1066.00
A104: =IF(Selbstdeklaration!$F$75=B104,F104/20*Selbstdeklaration!$F$76,0) -> 0.00 | B104: 93500 | C104: 309.06 | D104: 0.3305% | F104: 210.94 | H104: 210.90 | I104: 316.40 | J104: 421.90 | K104: 527.40 | L104: 632.80 | M104: 738.30 | N104: 843.80 | O104: 949.20 | P104: 1054.70
A105: =IF(Selbstdeklaration!$F$75=B105,F105/20*Selbstdeklaration!$F$76,0) -> 0.00 | B105: 94000 | C105: 311.33 | D105: 0.3312% | F105: 208.67 | H105: 208.70 | I105: 313.00 | J105: 417.30 | K105: 521.70 | L105: 626.00 | M105: 730.30 | N105: 834.70 | O105: 939.00 | P105: 1043.40
A106: =IF(Selbstdeklaration!$F$75=B106,F106/20*Selbstdeklaration!$F$76,0) -> 0.00 | B106: 94500 | C106: 313.61 | D106: 0.3319% | F106: 206.39 | H106: 206.40 | I106: 309.60 | J106: 412.80 | K106: 516.00 | L106: 619.20 | M106: 722.40 | N106: 825.60 | O106: 928.80 | P106: 1032.00
A107: =IF(Selbstdeklaration!$F$75=B107,F107/20*Selbstdeklaration!$F$76,0) -> 0.00 | B107: 95000 | C107: 315.89 | D107: 0.3325% | F107: 204.11 | H107: 204.10 | I107: 306.20 | J107: 408.20 | K107: 510.30 | L107: 612.30 | M107: 714.40 | N107: 816.40 | O107: 918.50 | P107: 1020.50
A108: =IF(Selbstdeklaration!$F$75=B108,F108/20*Selbstdeklaration!$F$76,0) -> 0.00 | B108: 95500 | C108: 318.18 | D108: 0.3332% | F108: 201.82 | H108: 201.80 | I108: 302.70 | J108: 403.60 | K108: 504.50 | L108: 605.40 | M108: 706.40 | N108: 807.30 | O108: 908.20 | P108: 1009.10
A109: =IF(Selbstdeklaration!$F$75=B109,F109/20*Selbstdeklaration!$F$76,0) -> 0.00 | B109: 96000 | C109: 320.48 | D109: 0.3338% | F109: 199.52 | H109: 199.50 | I109: 299.30 | J109: 399.00 | K109: 498.80 | L109: 598.60 | M109: 698.30 | N109: 798.10 | O109: 897.80 | P109: 997.60
A110: =IF(Selbstdeklaration!$F$75=B110,F110/20*Selbstdeklaration!$F$76,0) -> 0.00 | B110: 96500 | C110: 322.79 | D110: 0.3345% | F110: 197.21 | H110: 197.20 | I110: 295.80 | J110: 394.40 | K110: 493.00 | L110: 591.60 | M110: 690.20 | N110: 788.90 | O110: 887.50 | P110: 986.10
A111: =IF(Selbstdeklaration!$F$75=B111,F111/20*Selbstdeklaration!$F$76,0) -> 0.00 | B111: 97000 | C111: 325.10 | D111: 0.3352% | F111: 194.90 | H111: 194.90 | I111: 292.40 | J111: 389.80 | K111: 487.30 | L111: 584.70 | M111: 682.20 | N111: 779.60 | O111: 877.10 | P111: 974.50
A112: =IF(Selbstdeklaration!$F$75=B112,F112/20*Selbstdeklaration!$F$76,0) -> 0.00 | B112: 97500 | C112: 327.42 | D112: 0.3358% | F112: 192.58 | H112: 192.60 | I112: 288.90 | J112: 385.20 | K112: 481.50 | L112: 577.80 | M112: 674.00 | N112: 770.30 | O112: 866.60 | P112: 962.90
A113: =IF(Selbstdeklaration!$F$75=B113,F113/20*Selbstdeklaration!$F$76,0) -> 0.00 | B113: 98000 | C113: 329.74 | D113: 0.3365% | F113: 190.26 | H113: 190.30 | I113: 285.40 | J113: 380.50 | K113: 475.60 | L113: 570.80 | M113: 665.90 | N113: 761.00 | O113: 856.20 | P113: 951.30
A114: =IF(Selbstdeklaration!$F$75=B114,F114/20*Selbstdeklaration!$F$76,0) -> 0.00 | B114: 98500 | C114: 332.07 | D114: 0.3371% | F114: 187.93 | H114: 187.90 | I114: 281.90 | J114: 375.90 | K114: 469.80 | L114: 563.80 | M114: 657.80 | N114: 751.70 | O114: 845.70 | P114: 939.60
A115: =IF(Selbstdeklaration!$F$75=B115,F115/20*Selbstdeklaration!$F$76,0) -> 0.00 | B115: 99000 | C115: 334.41 | D115: 0.3378% | F115: 185.59 | H115: 185.60 | I115: 278.40 | J115: 371.20 | K115: 464.00 | L115: 556.80 | M115: 649.60 | N115: 742.40 | O115: 835.20 | P115: 928.00
A116: =IF(Selbstdeklaration!$F$75=B116,F116/20*Selbstdeklaration!$F$76,0) -> 0.00 | B116: 99500 | C116: 336.75 | D116: 0.3384% | F116: 183.25 | H116: 183.20 | I116: 274.90 | J116: 366.50 | K116: 458.10 | L116: 549.70 | M116: 641.40 | N116: 733.00 | O116: 824.60 | P116: 916.20
A117: =IF(Selbstdeklaration!$F$75=B117,F117/20*Selbstdeklaration!$F$76,0) -> 0.00 | B117: 100000 | C117: 339.10 | D117: 0.3391% | F117: 180.90 | H117: 180.90 | I117: 271.30 | J117: 361.80 | K117: 452.20 | L117: 542.70 | M117: 633.10 | N117: 723.60 | O117: 814.00 | P117: 904.50
A118: =IF(Selbstdeklaration!$F$75=B118,F118/20*Selbstdeklaration!$F$76,0) -> 0.00 | B118: 100500 | C118: 341.46 | D118: 0.3398% | F118: 178.54 | H118: 178.50 | I118: 267.80 | J118: 357.10 | K118: 446.30 | L118: 535.60 | M118: 624.90 | N118: 714.20 | O118: 803.40 | P118: 892.70
A119: =IF(Selbstdeklaration!$F$75=B119,F119/20*Selbstdeklaration!$F$76,0) -> 0.00 | B119: 101000 | C119: 343.82 | D119: 0.3404% | F119: 176.18 | H119: 176.20 | I119: 264.30 | J119: 352.40 | K119: 440.40 | L119: 528.50 | M119: 616.60 | N119: 704.70 | O119: 792.80 | P119: 880.90
A120: =IF(Selbstdeklaration!$F$75=B120,F120/20*Selbstdeklaration!$F$76,0) -> 0.00 | B120: 101500 | C120: 346.20 | D120: 0.3411% | F120: 173.80 | H120: 173.80 | I120: 260.70 | J120: 347.60 | K120: 434.50 | L120: 521.40 | M120: 608.30 | N120: 695.20 | O120: 782.10 | P120: 869.00
A121: =IF(Selbstdeklaration!$F$75=B121,F121/20*Selbstdeklaration!$F$76,0) -> 0.00 | B121: 102000 | C121: 348.57 | D121: 0.3417% | F121: 171.43 | H121: 171.40 | I121: 257.10 | J121: 342.90 | K121: 428.60 | L121: 514.30 | M121: 600.00 | N121: 685.70 | O121: 771.40 | P121: 857.10
A122: =IF(Selbstdeklaration!$F$75=B122,F122/20*Selbstdeklaration!$F$76,0) -> 0.00 | B122: 102500 | C122: 350.96 | D122: 0.3424% | F122: 169.04 | H122: 169.00 | I122: 253.60 | J122: 338.10 | K122: 422.60 | L122: 507.10 | M122: 591.70 | N122: 676.20 | O122: 760.70 | P122: 845.20
A123: =IF(Selbstdeklaration!$F$75=B123,F123/20*Selbstdeklaration!$F$76,0) -> 0.00 | B123: 103000 | C123: 353.35 | D123: 0.3431% | F123: 166.65 | H123: 166.70 | I123: 250.00 | J123: 333.30 | K123: 416.60 | L123: 500.00 | M123: 583.30 | N123: 666.60 | O123: 749.90 | P123: 833.30
A124: =IF(Selbstdeklaration!$F$75=B124,F124/20*Selbstdeklaration!$F$76,0) -> 0.00 | B124: 103500 | C124: 355.74 | D124: 0.3437% | F124: 164.26 | H124: 164.30 | I124: 246.40 | J124: 328.50 | K124: 410.60 | L124: 492.80 | M124: 574.90 | N124: 657.00 | O124: 739.20 | P124: 821.30
A125: =IF(Selbstdeklaration!$F$75=B125,F125/20*Selbstdeklaration!$F$76,0) -> 0.00 | B125: 104000 | C125: 358.15 | D125: 0.3444% | F125: 161.85 | H125: 161.90 | I125: 242.80 | J125: 323.70 | K125: 404.60 | L125: 485.60 | M125: 566.50 | N125: 647.40 | O125: 728.30 | P125: 809.30
A126: =IF(Selbstdeklaration!$F$75=B126,F126/20*Selbstdeklaration!$F$76,0) -> 0.00 | B126: 104500 | C126: 360.56 | D126: 0.3450% | F126: 159.44 | H126: 159.40 | I126: 239.20 | J126: 318.90 | K126: 398.60 | L126: 478.30 | M126: 558.10 | N126: 637.80 | O126: 717.50 | P126: 797.20
A127: =IF(Selbstdeklaration!$F$75=B127,F127/20*Selbstdeklaration!$F$76,0) -> 0.00 | B127: 105000 | C127: 362.97 | D127: 0.3457% | F127: 157.03 | H127: 157.00 | I127: 235.50 | J127: 314.10 | K127: 392.60 | L127: 471.10 | M127: 549.60 | N127: 628.10 | O127: 706.60 | P127: 785.10
A128: =IF(Selbstdeklaration!$F$75=B128,F128/20*Selbstdeklaration!$F$76,0) -> 0.00 | B128: 105500 | C128: 365.40 | D128: 0.3463% | F128: 154.60 | H128: 154.60 | I128: 231.90 | J128: 309.20 | K128: 386.50 | L128: 463.80 | M128: 541.10 | N128: 618.40 | O128: 695.70 | P128: 773.00
A129: =IF(Selbstdeklaration!$F$75=B129,F129/20*Selbstdeklaration!$F$76,0) -> 0.00 | B129: 106000 | C129: 367.83 | D129: 0.3470% | F129: 152.17 | H129: 152.20 | I129: 228.30 | J129: 304.30 | K129: 380.40 | L129: 456.50 | M129: 532.60 | N129: 608.70 | O129: 684.80 | P129: 760.90
A130: =IF(Selbstdeklaration!$F$75=B130,F130/20*Selbstdeklaration!$F$76,0) -> 0.00 | B130: 106500 | C130: 370.26 | D130: 0.3477% | F130: 149.74 | H130: 149.70 | I130: 224.60 | J130: 299.50 | K130: 374.30 | L130: 449.20 | M130: 524.10 | N130: 598.90 | O130: 673.80 | P130: 748.70
A131: =IF(Selbstdeklaration!$F$75=B131,F131/20*Selbstdeklaration!$F$76,0) -> 0.00 | B131: 107000 | C131: 372.71 | D131: 0.3483% | F131: 147.29 | H131: 147.30 | I131: 220.90 | J131: 294.60 | K131: 368.20 | L131: 441.90 | M131: 515.50 | N131: 589.20 | O131: 662.80 | P131: 736.50
A132: =IF(Selbstdeklaration!$F$75=B132,F132/20*Selbstdeklaration!$F$76,0) -> 0.00 | B132: 107500 | C132: 375.16 | D132: 0.3490% | F132: 144.84 | H132: 144.80 | I132: 217.30 | J132: 289.70 | K132: 362.10 | L132: 434.50 | M132: 507.00 | N132: 579.40 | O132: 651.80 | P132: 724.20
A133: =IF(Selbstdeklaration!$F$75=B133,F133/20*Selbstdeklaration!$F$76,0) -> 0.00 | B133: 108000 | C133: 377.61 | D133: 0.3496% | F133: 142.39 | H133: 142.40 | I133: 213.60 | J133: 284.80 | K133: 356.00 | L133: 427.20 | M133: 498.40 | N133: 569.60 | O133: 640.70 | P133: 711.90
A134: =IF(Selbstdeklaration!$F$75=B134,F134/20*Selbstdeklaration!$F$76,0) -> 0.00 | B134: 108500 | C134: 380.07 | D134: 0.3503% | F134: 139.93 | H134: 139.90 | I134: 209.90 | J134: 279.90 | K134: 349.80 | L134: 419.80 | M134: 489.70 | N134: 559.70 | O134: 629.70 | P134: 699.60
A135: =IF(Selbstdeklaration!$F$75=B135,F135/20*Selbstdeklaration!$F$76,0) -> 0.00 | B135: 109000 | C135: 382.54 | D135: 0.3510% | F135: 137.46 | H135: 137.50 | I135: 206.20 | J135: 274.90 | K135: 343.60 | L135: 412.40 | M135: 481.10 | N135: 549.80 | O135: 618.60 | P135: 687.30
A136: =IF(Selbstdeklaration!$F$75=B136,F136/20*Selbstdeklaration!$F$76,0) -> 0.00 | B136: 109500 | C136: 385.02 | D136: 0.3516% | F136: =+$F$5-C136 -> 134.98 | H136: 135.00 | I136: =ROUND($F$5*1.5-C136*1.5,1) -> 202.50 | J136: =ROUND($F$5*2-C136*2,1) -> 270.00 | K136: =ROUND($F$5*2.5-C136*2.5,1) -> 337.50 | L136: =ROUND($F$5*3-C136*3,1) -> 404.90 | M136: =ROUND($F$5*3.5-C136*3.5,1) -> 472.40 | N136: =ROUND($F$5*4-C136*4,1) -> 539.90 | O136: =ROUND($F$5*4.5-C136*4.5,1) -> 607.40 | P136: =ROUND($F$5*5-C136*5,1) -> 674.90
A137: =IF(Selbstdeklaration!$F$75=B137,F137/20*Selbstdeklaration!$F$76,0) -> 0.00 | B137: 110000 | C137: =+B137*D137 -> 387.50 | D137: =D136+($D$187-$D$7)/90000*500 -> 0.3523% | F137: 132.50 | H137: =ROUND($F$5-C137,1) -> 132.50 | I137: 198.70 | J137: 265.00 | K137: 331.20 | L137: 397.50 | M137: 463.70 | N137: 530.00 | O137: 596.20 | P137: 662.50
A138: =IF(Selbstdeklaration!$F$75=B138,F138/20*Selbstdeklaration!$F$76,0) -> 0.00 | B138: 110500 | C138: 389.99 | D138: 0.3529% | F138: 130.01 | H138: 130.00 | I138: 195.00 | J138: 260.00 | K138: 325.00 | L138: 390.00 | M138: 455.00 | N138: 520.00 | O138: 585.00 | P138: 650.00
A139: =IF(Selbstdeklaration!$F$75=B139,F139/20*Selbstdeklaration!$F$76,0) -> 0.00 | B139: 111000 | C139: 392.49 | D139: 0.3536% | F139: 127.51 | H139: 127.50 | I139: 191.30 | J139: 255.00 | K139: 318.80 | L139: 382.50 | M139: 446.30 | N139: 510.10 | O139: 573.80 | P139: 637.60
A140: =IF(Selbstdeklaration!$F$75=B140,F140/20*Selbstdeklaration!$F$76,0) -> 0.00 | B140: 111500 | C140: 394.99 | D140: 0.3542% | F140: 125.01 | H140: 125.00 | I140: 187.50 | J140: 250.00 | K140: 312.50 | L140: 375.00 | M140: 437.50 | N140: 500.00 | O140: 562.60 | P140: 625.10
A141: =IF(Selbstdeklaration!$F$75=B141,F141/20*Selbstdeklaration!$F$76,0) -> 0.00 | B141: 112000 | C141: 397.50 | D141: 0.3549% | F141: 122.50 | H141: 122.50 | I141: 183.80 | J141: 245.00 | K141: 306.30 | L141: 367.50 | M141: 428.80 | N141: 490.00 | O141: 551.30 | P141: 612.50
A142: =IF(Selbstdeklaration!$F$75=B142,F142/20*Selbstdeklaration!$F$76,0) -> 0.00 | B142: 112500 | C142: 400.01 | D142: 0.3556% | F142: 119.99 | H142: 120.00 | I142: 180.00 | J142: 240.00 | K142: 300.00 | L142: 360.00 | M142: 420.00 | N142: 479.90 | O142: 539.90 | P142: 599.90
A143: =IF(Selbstdeklaration!$F$75=B143,F143/20*Selbstdeklaration!$F$76,0) -> 0.00 | B143: 113000 | C143: 402.53 | D143: 0.3562% | F143: 117.47 | H143: 117.50 | I143: 176.20 | J143: 234.90 | K143: 293.70 | L143: 352.40 | M143: 411.10 | N143: 469.90 | O143: 528.60 | P143: 587.30
A144: =IF(Selbstdeklaration!$F$75=B144,F144/20*Selbstdeklaration!$F$76,0) -> 0.00 | B144: 113500 | C144: 405.06 | D144: 0.3569% | F144: 114.94 | H144: 114.90 | I144: 172.40 | J144: 229.90 | K144: 287.30 | L144: 344.80 | M144: 402.30 | N144: 459.70 | O144: 517.20 | P144: 574.70
A145: =IF(Selbstdeklaration!$F$75=B145,F145/20*Selbstdeklaration!$F$76,0) -> 0.00 | B145: 114000 | C145: 407.60 | D145: 0.3575% | F145: 112.40 | H145: 112.40 | I145: 168.60 | J145: 224.80 | K145: 281.00 | L145: 337.20 | M145: 393.40 | N145: 449.60 | O145: 505.80 | P145: 562.00
A146: =IF(Selbstdeklaration!$F$75=B146,F146/20*Selbstdeklaration!$F$76,0) -> 0.00 | B146: 114500 | C146: 410.14 | D146: 0.3582% | F146: 109.86 | H146: 109.90 | I146: 164.80 | J146: 219.70 | K146: 274.70 | L146: 329.60 | M146: 384.50 | N146: 439.40 | O146: 494.40 | P146: 549.30
A147: =IF(Selbstdeklaration!$F$75=B147,F147/20*Selbstdeklaration!$F$76,0) -> 0.00 | B147: 115000 | C147: 412.69 | D147: 0.3589% | F147: 107.31 | H147: 107.30 | I147: 161.00 | J147: 214.60 | K147: 268.30 | L147: 321.90 | M147: 375.60 | N147: 429.20 | O147: 482.90 | P147: 536.60
A148: =IF(Selbstdeklaration!$F$75=B148,F148/20*Selbstdeklaration!$F$76,0) -> 0.00 | B148: 115500 | C148: 415.24 | D148: 0.3595% | F148: 104.76 | H148: 104.80 | I148: 157.10 | J148: 209.50 | K148: 261.90 | L148: 314.30 | M148: 366.60 | N148: 419.00 | O148: 471.40 | P148: 523.80
A149: =IF(Selbstdeklaration!$F$75=B149,F149/20*Selbstdeklaration!$F$76,0) -> 0.00 | B149: 116000 | C149: 417.80 | D149: 0.3602% | F149: 102.20 | H149: 102.20 | I149: 153.30 | J149: 204.40 | K149: 255.50 | L149: 306.60 | M149: 357.70 | N149: 408.80 | O149: 459.90 | P149: 511.00
A150: =IF(Selbstdeklaration!$F$75=B150,F150/20*Selbstdeklaration!$F$76,0) -> 0.00 | B150: 116500 | C150: 420.37 | D150: 0.3608% | F150: 99.63 | H150: 99.60 | I150: 149.40 | J150: 199.30 | K150: 249.10 | L150: 298.90 | M150: 348.70 | N150: 398.50 | O150: 448.30 | P150: 498.10
A151: =IF(Selbstdeklaration!$F$75=B151,F151/20*Selbstdeklaration!$F$76,0) -> 0.00 | B151: 117000 | C151: 422.95 | D151: 0.3615% | F151: 97.05 | H151: 97.10 | I151: 145.60 | J151: 194.10 | K151: 242.60 | L151: 291.20 | M151: 339.70 | N151: 388.20 | O151: 436.70 | P151: 485.30
A152: =IF(Selbstdeklaration!$F$75=B152,F152/20*Selbstdeklaration!$F$76,0) -> 0.00 | B152: 117500 | C152: 425.53 | D152: 0.3622% | F152: 94.47 | H152: 94.50 | I152: 141.70 | J152: 188.90 | K152: 236.20 | L152: 283.40 | M152: 330.70 | N152: 377.90 | O152: 425.10 | P152: 472.40
A153: =IF(Selbstdeklaration!$F$75=B153,F153/20*Selbstdeklaration!$F$76,0) -> 0.00 | B153: 118000 | C153: 428.12 | D153: 0.3628% | F153: 91.88 | H153: 91.90 | I153: 137.80 | J153: 183.80 | K153: 229.70 | L153: 275.70 | M153: 321.60 | N153: 367.50 | O153: 413.50 | P153: 459.40
A154: =IF(Selbstdeklaration!$F$75=B154,F154/20*Selbstdeklaration!$F$76,0) -> 0.00 | B154: 118500 | C154: 430.71 | D154: 0.3635% | F154: 89.29 | H154: 89.30 | I154: 133.90 | J154: 178.60 | K154: 223.20 | L154: 267.90 | M154: 312.50 | N154: 357.20 | O154: 401.80 | P154: 446.40
A155: =IF(Selbstdeklaration!$F$75=B155,F155/20*Selbstdeklaration!$F$76,0) -> 0.00 | B155: 119000 | C155: 433.31 | D155: 0.3641% | F155: 86.69 | H155: 86.70 | I155: 130.00 | J155: 173.40 | K155: 216.70 | L155: 260.10 | M155: 303.40 | N155: 346.80 | O155: 390.10 | P155: 433.40
A156: =IF(Selbstdeklaration!$F$75=B156,F156/20*Selbstdeklaration!$F$76,0) -> 0.00 | B156: 119500 | C156: 435.92 | D156: 0.3648% | F156: 84.08 | H156: 84.10 | I156: 126.10 | J156: 168.20 | K156: 210.20 | L156: 252.20 | M156: 294.30 | N156: 336.30 | O156: 378.40 | P156: 420.40
A157: =IF(Selbstdeklaration!$F$75=B157,F157/20*Selbstdeklaration!$F$76,0) -> 0.00 | B157: 120000 | C157: 438.53 | D157: 0.3654% | F157: 81.47 | H157: 81.50 | I157: 122.20 | J157: 162.90 | K157: 203.70 | L157: 244.40 | M157: 285.10 | N157: 325.90 | O157: 366.60 | P157: 407.30
A158: =IF(Selbstdeklaration!$F$75=B158,F158/20*Selbstdeklaration!$F$76,0) -> 0.00 | B158: 120500 | C158: 441.15 | D158: 0.3661% | F158: 78.85 | H158: 78.80 | I158: 118.30 | J158: 157.70 | K158: 197.10 | L158: 236.50 | M158: 276.00 | N158: 315.40 | O158: 354.80 | P158: 394.20
A159: =IF(Selbstdeklaration!$F$75=B159,F159/20*Selbstdeklaration!$F$76,0) -> 0.00 | B159: 121000 | C159: 443.78 | D159: 0.3668% | F159: 76.22 | H159: 76.20 | I159: 114.30 | J159: 152.40 | K159: 190.50 | L159: 228.70 | M159: 266.80 | N159: 304.90 | O159: 343.00 | P159: 381.10
A160: =IF(Selbstdeklaration!$F$75=B160,F160/20*Selbstdeklaration!$F$76,0) -> 0.00 | B160: 121500 | C160: 446.42 | D160: 0.3674% | F160: 73.58 | H160: 73.60 | I160: 110.40 | J160: 147.20 | K160: 184.00 | L160: 220.80 | M160: 257.50 | N160: 294.30 | O160: 331.10 | P160: 367.90
A161: =IF(Selbstdeklaration!$F$75=B161,F161/20*Selbstdeklaration!$F$76,0) -> 0.00 | B161: 122000 | C161: 449.06 | D161: 0.3681% | F161: 70.94 | H161: 70.90 | I161: 106.40 | J161: 141.90 | K161: 177.40 | L161: 212.80 | M161: 248.30 | N161: 283.80 | O161: 319.20 | P161: 354.70
A162: =IF(Selbstdeklaration!$F$75=B162,F162/20*Selbstdeklaration!$F$76,0) -> 0.00 | B162: 122500 | C162: 451.70 | D162: 0.3687% | F162: 68.30 | H162: 68.30 | I162: 102.40 | J162: 136.60 | K162: 170.70 | L162: 204.90 | M162: 239.00 | N162: 273.20 | O162: 307.30 | P162: 341.50
A163: =IF(Selbstdeklaration!$F$75=B163,F163/20*Selbstdeklaration!$F$76,0) -> 0.00 | B163: 123000 | C163: 454.36 | D163: 0.3694% | F163: 65.64 | H163: 65.60 | I163: 98.50 | J163: 131.30 | K163: 164.10 | L163: 196.90 | M163: 229.80 | N163: 262.60 | O163: 295.40 | P163: 328.20
A164: =IF(Selbstdeklaration!$F$75=B164,F164/20*Selbstdeklaration!$F$76,0) -> 0.00 | B164: 123500 | C164: 457.02 | D164: 0.3701% | F164: 62.98 | H164: 63.00 | I164: 94.50 | J164: 126.00 | K164: 157.50 | L164: 188.90 | M164: 220.40 | N164: 251.90 | O164: 283.40 | P164: 314.90
A165: =IF(Selbstdeklaration!$F$75=B165,F165/20*Selbstdeklaration!$F$76,0) -> 0.00 | B165: 124000 | C165: 459.68 | D165: 0.3707% | F165: 60.32 | H165: 60.30 | I165: 90.50 | J165: 120.60 | K165: 150.80 | L165: 180.90 | M165: 211.10 | N165: 241.30 | O165: 271.40 | P165: 301.60
A166: =IF(Selbstdeklaration!$F$75=B166,F166/20*Selbstdeklaration!$F$76,0) -> 0.00 | B166: 124500 | C166: 462.36 | D166: 0.3714% | F166: 57.64 | H166: 57.60 | I166: 86.50 | J166: 115.30 | K166: 144.10 | L166: 172.90 | M166: 201.80 | N166: 230.60 | O166: 259.40 | P166: 288.20
A167: =IF(Selbstdeklaration!$F$75=B167,F167/20*Selbstdeklaration!$F$76,0) -> 0.00 | B167: 125000 | C167: 465.04 | D167: 0.3720% | F167: 54.96 | H167: 55.00 | I167: 82.40 | J167: 109.90 | K167: 137.40 | L167: 164.90 | M167: 192.40 | N167: 219.90 | O167: 247.30 | P167: 274.80
A168: =IF(Selbstdeklaration!$F$75=B168,F168/20*Selbstdeklaration!$F$76,0) -> 0.00 | B168: 125500 | C168: 467.72 | D168: 0.3727% | F168: 52.28 | H168: 52.30 | I168: 78.40 | J168: 104.60 | K168: 130.70 | L168: 156.80 | M168: 183.00 | N168: 209.10 | O168: 235.20 | P168: 261.40
A169: =IF(Selbstdeklaration!$F$75=B169,F169/20*Selbstdeklaration!$F$76,0) -> 0.00 | B169: 126000 | C169: 470.42 | D169: 0.3733% | F169: 49.58 | H169: 49.60 | I169: 74.40 | J169: 99.20 | K169: 124.00 | L169: 148.70 | M169: 173.50 | N169: 198.30 | O169: 223.10 | P169: 247.90
A170: =IF(Selbstdeklaration!$F$75=B170,F170/20*Selbstdeklaration!$F$76,0) -> 0.00 | B170: 126500 | C170: 473.12 | D170: 0.3740% | F170: 46.88 | H170: 46.90 | I170: 70.30 | J170: 93.80 | K170: 117.20 | L170: 140.70 | M170: 164.10 | N170: 187.50 | O170: 211.00 | P170: 234.40
A171: =IF(Selbstdeklaration!$F$75=B171,F171/20*Selbstdeklaration!$F$76,0) -> 0.00 | B171: 127000 | C171: 475.82 | D171: 0.3747% | F171: 44.18 | H171: 44.20 | I171: 66.30 | J171: 88.40 | K171: 110.40 | L171: 132.50 | M171: 154.60 | N171: 176.70 | O171: 198.80 | P171: 220.90
A172: =IF(Selbstdeklaration!$F$75=B172,F172/20*Selbstdeklaration!$F$76,0) -> 0.00 | B172: 127500 | C172: 478.54 | D172: 0.3753% | F172: 41.46 | H172: 41.50 | I172: 62.20 | J172: 82.90 | K172: 103.70 | L172: 124.40 | M172: 145.10 | N172: 165.90 | O172: 186.60 | P172: 207.30
A173: =IF(Selbstdeklaration!$F$75=B173,F173/20*Selbstdeklaration!$F$76,0) -> 0.00 | B173: 128000 | C173: 481.26 | D173: 0.3760% | F173: 38.74 | H173: 38.70 | I173: 58.10 | J173: 77.50 | K173: 96.90 | L173: 116.20 | M173: 135.60 | N173: 155.00 | O173: 174.40 | P173: 193.70
A174: =IF(Selbstdeklaration!$F$75=B174,F174/20*Selbstdeklaration!$F$76,0) -> 0.00 | B174: 128500 | C174: 483.98 | D174: 0.3766% | F174: 36.02 | H174: 36.00 | I174: 54.00 | J174: 72.00 | K174: 90.00 | L174: 108.10 | M174: 126.10 | N174: 144.10 | O174: 162.10 | P174: 180.10
A175: =IF(Selbstdeklaration!$F$75=B175,F175/20*Selbstdeklaration!$F$76,0) -> 0.00 | B175: 129000 | C175: 486.71 | D175: 0.3773% | F175: 33.29 | H175: 33.30 | I175: 49.90 | J175: 66.60 | K175: 83.20 | L175: 99.90 | M175: 116.50 | N175: 133.10 | O175: 149.80 | P175: 166.40
A176: =IF(Selbstdeklaration!$F$75=B176,F176/20*Selbstdeklaration!$F$76,0) -> 0.00 | B176: 129500 | C176: 489.45 | D176: 0.3780% | F176: 30.55 | H176: 30.50 | I176: 45.80 | J176: 61.10 | K176: 76.40 | L176: 91.60 | M176: 106.90 | N176: 122.20 | O176: 137.50 | P176: 152.70
A177: =IF(Selbstdeklaration!$F$75=B177,F177/20*Selbstdeklaration!$F$76,0) -> 0.00 | B177: 130000 | C177: 492.20 | D177: 0.3786% | F177: 27.80 | H177: 27.80 | I177: 41.70 | J177: 55.60 | K177: 69.50 | L177: 83.40 | M177: 97.30 | N177: 111.20 | O177: 125.10 | P177: 139.00
A178: =IF(Selbstdeklaration!$F$75=B178,F178/20*Selbstdeklaration!$F$76,0) -> 0.00 | B178: 130500 | C178: 494.95 | D178: 0.3793% | F178: 25.05 | H178: 25.00 | I178: 37.60 | J178: 50.10 | K178: 62.60 | L178: 75.10 | M178: 87.70 | N178: 100.20 | O178: 112.70 | P178: 125.20
A179: =IF(Selbstdeklaration!$F$75=B179,F179/20*Selbstdeklaration!$F$76,0) -> 0.00 | B179: 131000 | C179: 497.71 | D179: 0.3799% | F179: 22.29 | H179: 22.30 | I179: 33.40 | J179: 44.60 | K179: 55.70 | L179: 66.90 | M179: 78.00 | N179: 89.20 | O179: 100.30 | P179: 111.40
A180: =IF(Selbstdeklaration!$F$75=B180,F180/20*Selbstdeklaration!$F$76,0) -> 0.00 | B180: 131500 | C180: 500.48 | D180: 0.3806% | F180: 19.52 | H180: 19.50 | I180: 29.30 | J180: 39.00 | K180: 48.80 | L180: 58.60 | M180: 68.30 | N180: 78.10 | O180: 87.90 | P180: 97.60
A181: =IF(Selbstdeklaration!$F$75=B181,F181/20*Selbstdeklaration!$F$76,0) -> 0.00 | B181: 132000 | C181: 503.25 | D181: 0.3812% | F181: 16.75 | H181: 16.80 | I181: 25.10 | J181: 33.50 | K181: 41.90 | L181: 50.30 | M181: 58.60 | N181: 67.00 | O181: 75.40 | P181: 83.80
A182: =IF(Selbstdeklaration!$F$75=B182,F182/20*Selbstdeklaration!$F$76,0) -> 0.00 | B182: 132500 | C182: 506.03 | D182: 0.3819% | F182: 13.97 | H182: 14.00 | I182: 21.00 | J182: 27.90 | K182: 34.90 | L182: 41.90 | M182: 48.90 | N182: 55.90 | O182: 62.90 | P182: 69.90
A183: =IF(Selbstdeklaration!$F$75=B183,F183/20*Selbstdeklaration!$F$76,0) -> 0.00 | B183: 133000 | C183: 508.81 | D183: 0.3826% | F183: 11.19 | H183: 11.20 | I183: 16.80 | J183: 22.40 | K183: 28.00 | L183: 33.60 | M183: 39.20 | N183: 44.70 | O183: 50.30 | P183: 55.90
A184: =IF(Selbstdeklaration!$F$75=B184,F184/20*Selbstdeklaration!$F$76,0) -> 0.00 | B184: 133500 | C184: 511.60 | D184: 0.3832% | F184: 0.00 | H184: 8.40 | I184: 12.60 | J184: 16.80 | K184: 21.00 | L184: 25.20 | M184: 29.40 | N184: 33.60 | O184: 37.80 | P184: 42.00
A185: =IF(Selbstdeklaration!$F$75=B185,F185/20*Selbstdeklaration!$F$76,0) -> 0.00 | B185: 134000 | C185: 514.40 | D185: 0.3839% | F185: 0.00 | H185: 5.60 | I185: 8.40 | J185: 11.20 | K185: 14.00 | L185: 16.80 | M185: 19.60 | N185: 22.40 | O185: 25.20 | P185: 28.00
A186: =IF(Selbstdeklaration!$F$75=B186,F186/20*Selbstdeklaration!$F$76,0) -> 0.00 | B186: 134500 | C186: 517.21 | D186: 0.3845% | F186: 0.00 | H186: 2.80 | I186: 4.20 | J186: 5.60 | K186: 7.00 | L186: 8.40 | M186: 9.80 | N186: 11.20 | O186: 12.60 | P186: 14.00
A187: =IF(Selbstdeklaration!$F$75=B187,F187/20*Selbstdeklaration!$F$76,0) -> 0.00 | B187: 135000 | C187: 520.02 | D187: 0.3852% | F187: 0.00 | H187: 0.00 | I187: 0.00 | J187: 0.00 | K187: 0.00 | L187: -0.10 | M187: -0.10 | N187: -0.10 | O187: -0.10 | P187: -0.10
A190: =SUM(A6:A187) -> 0.00

Sheet Selbstdeklaration
E2: Selbstdeklaration
E4: Betreuungsgutscheine Kinderbetreuung
E5: Grundlagen siehe: www.betreuungsgutschein.ch
A7: A | B7: Personalien
B8: Name, Vorname Kind
B9: Name, Vorname Mutter
B10: Name, Vorname Vater
B11: Strasse
B12: PLZ / Ort
B13: Telefon
B14: E-Mail
B15: Zivilstand
A17: B | B17: Familien- und Erwerbssituation
B18: Anzahl Kinder (für die ein Steuerabzug gewährt wird)
B19: beide Elternteile leben im Haushalt
B20: weitere erwachsene Personen ohne Steuerabzug im gleichen Haushalt | H20: 0
G21: Person 1 | H21: Person 2
B22: Erwerbspensen (Stellenprozente)
E23: =IF(H19="JA",G22+H22-100%,H23) -> 0% | G23: insgesamt | H23: =G22+H22 -> 0%
A24: C | B24: Vermögensgrenze
B25: Das Reinvermögen gemäss Steuererklärung Ziff. 660 beträgt weniger als CHF 350'000
A27: D | B27: Massgebendes Einkommen
B28: (Erziehungsberechtigte, die im gleichen Haushalt leben, geben undabhängig vom Zivilstand beide Einkommen an)
A29: 1 | B29: Einkünfte | G29: 1. Steuererkl. | H29: 2. Steuererkl.
A30: 1a | B30: Total aller Einkünfte gemäss Steuererklärung Ziff. 190
A31: 1b | B31: Quellensteuerpflichtige - Nettolohn II des Lohnausweises
A32: 1c | B32: Aktuelle Einkommensveränderung netto (+Zunahme - Abnahme)
A33: 1d | B33: Erwartetes Jahreseinkommen aller Einkünfte = Total im Jahr | H33: =G30+H30+G31+H31+G32+H32 -> 0
A34: 2 | B34: Zuschläge
A35: 2a | B35: Zuschlag 20% für Selbständigerwerbende Ziff. 115 Steuererklärung | H35: =G35*20% -> 0
A36: 2b | B36: Zuschlag Haushaltgemeinschaft erwachsene Personen (CHF 9'600 pro Person) | H36: =H20*9600 -> 0
A37: 3 | B37: Abzüge
A38: 3a | B38: Pauschalabzug pro Haushalt (CHF 6'000) | H38: 6000
A39: 3b | B39: Kinderabzug pro Kind wie bei Steuern (CHF 12'000) | H39: =H18*12000 -> 0
A40: 3c | B40: Elternabzug bei zwei angerechneten Einkommen (CHF 3'000) | F40: =IF(H42=0,0,MROUND((H42-250),500)) -> 0 | H40: =IF(H19="JA",3000,0) -> 0
A41: 3d | B41: Abzug für effektiv bezahlte Unterhaltsbeiträge gemäss Steuererklärung Ziff. 211
A42: 4 | B42: Massgebendes Einkommen für die Berechnung der Betreuungsgutscheine | H42: =IF(H33+H35+H36-H38-H39-H40-H41<0,0,(H33+H35+H36-H38-H39-H40-H41)) -> 0
A44: E | B44: Angaben zur Betreuuung (Betreuungsvereinbarung mitschicken)
B45: Name Kinderbetreuungseinrichtung
B46: Strasse
B47: PLZ / Ort
B49: Betreuungsumfang | E49: in Tagen pro Woche | G49: =+F49*20% -> 0% | H49: in Prozent
B50: Betreuungsbeginn | E50: Datum
B51: Voraussichtliche Kosten der Betreuung (Tarif) pro Monat
B53: Beiträge von Arbeitgeber oder Dritten pro Monat in Franken | F53: 0
C55: Es wird um Kontaktaufnahme für eine ausserordentliche Subventionierung gebeten.
B57: Weitere Angaben im Zusammenhang mit dem Betreuungsverhältnis oder dessen Finanzierung
A61: F | B61: Angaben Zahlungsverbindung
B62: IBAN-Nr.
B63: Name Bankinstitut
B64: Konto lautend auf
A66: G | B66: Bestätigung
B67: Hiermit werden die Richtigkeit und die Vollständigkeit der gemachten Angaben bestätigt. Der Abteilung Soziales und Gesundheit wird die Einwilligung erteilt, die Angaben von der gemeindlichen Steuerabteilung überprüfen zu lassen.
B70: Ort und Datum | E70: Unterschrift Erziehungsberechtigte
A72: H | B72: Vorläufige Berechnung des monatlichen Gemeindebeitrages
B73: Die Höhe monatlichen Beiträge der Gemeinde Hünenberg richten sich nach der Verordnung Finanzierung familienergänzende Kinderbetreuung und den entsprechenden Tarifbestimmungen.
B75: Massgebendes Einkommen | F75: =F40 -> 0
B76: Berechtigter Betreuungsumfang in Prozent | F76: =IF(G49<=E23,G49,E23)*100 -> 0
B77: Voraussichtliche Höhe des Gemeindebeitrages pro Monat | F77: =ROUND(Tabelle_Beiträge_Gutscheine!A190,1) -> 0.00
B78: (Beträge unter CHF 50.00 pro Monat werden nicht ausbezahlt)
B80: Dieser Ausdruck dient der Berechnung aufgrund der Selbstdeklaration und stellt keinen Anspruch auf Gemeindebeiträge der Gemeinde Hünenberg dar.
A82: I | B82: Betreuungsvereinbarung Kinderkrippe
B83: Bitte eine Kopie der Vereinbarung mit dem Betreuungsumfang mit einsenden.

Sheet Übersicht_Gutscheine
B1: Tarifmodell
C3: Krippe
B4: Massgebendes Einkommen | C4: 20% Betreuung | D4: Satz Eigenleistungen | H4: monatlicher Gutschein | I4: monatlicher Gutschein | J4: monatlicher Gutschein | K4: monatlicher Gutschein | L4: monatlicher Gutschein | M4: monatlicher Gutschein | N4: monatlicher Gutschein | O4: monatlicher Gutschein | P4: monatlicher Gutschein
B5: <45000 | C5: Mindestbetrag | F5: 520 | H5: 20% | I5: 30% | J5: 40% | K5: 50% | L5: 60% | M5: 70% | N5: 80% | O5: 90% | P5: 100%
A6: =IF(Selbstdeklaration!F75<B7,F7*Selbstdeklaration!$F$76/10,0) -> 0.00 | B6: Mindestbetrag | C6: 120 / Monat
A7: =IF(Selbstdeklaration!$F$75=B7,F7*Selbstdeklaration!$F$76/10,0) -> 0.00 | B7: 45000 | C7: 120.00 | D7: =+C7/B7 -> 0.2667% | F7: =+$F$5-C7 -> 400.00 | H7: =ROUND($F$5-C7,1) -> 400.00 | I7: =ROUND($F$5*1.5-C7*1.5,1) -> 600.00 | J7: =ROUND($F$5*2-C7*2,1) -> 800.00 | K7: =ROUND($F$5*2.5-C7*2.5,1) -> 1000.00 | L7: =ROUND($F$5*3-C7*3,1) -> 1200.00 | M7: =ROUND($F$5*3.5-C7*3.5,1) -> 1400.00 | N7: =ROUND($F$5*4-C7*4,1) -> 1600.00 | O7: =ROUND($F$5*4.5-C7*4.5,1) -> 1800.00 | P7: =ROUND($F$5*5-C7*5,1) -> 2000.00
A8: =IF(Selbstdeklaration!$F$75=B8,F8*Selbstdeklaration!$F$76/10,0) -> 0.00 | B8: 45500 | C8: =+B8*D8 -> 121.63 | D8: =D7+($D$187-$D$7)/90000*500 -> 0.2673% | F8: =+$F$5-C8 -> 398.37 | H8: =ROUND($F$5-C8,1) -> 398.40 | I8: =ROUND($F$5*1.5-C8*1.5,1) -> 597.60 | J8: =ROUND($F$5*2-C8*2,1) -> 796.70 | K8: =ROUND($F$5*2.5-C8*2.5,1) -> 995.90 | L8: =ROUND($F$5*3-C8*3,1) -> 1195.10 | M8: =ROUND($F$5*3.5-C8*3.5,1) -> 1394.30 | N8: =ROUND($F$5*4-C8*4,1) -> 1593.50 | O8: =ROUND($F$5*4.5-C8*4.5,1) -> 1792.70 | P8: =ROUND($F$5*5-C8*5,1) -> 1991.80
A9: =IF(Selbstdeklaration!$F$75=B9,F9*Selbstdeklaration!$F$76/10,0) -> 0.00 | B9: 46000 | C9: =+B9*D9 -> 123.27 | D9: =D8+($D$187-$D$7)/90000*500 -> 0.2680% | F9: 396.73 | H9: =ROUND($F$5-C9,1) -> 396.70 | I9: 595.10 | J9: 793.50 | K9: 991.80 | L9: 1190.20 | M9: 1388.50 | N9: 1586.90 | O9: 1785.30 | P9: 1983.60
A10: =IF(Selbstdeklaration!$F$75=B10,F10*Selbstdeklaration!$F$76/10,0) -> 0.00 | B10: 46500 | C10: 124.92 | D10: 0.2686% | F10: 395.08 | H10: 395.10 | I10: 592.60 | J10: 790.20 | K10: 987.70 | L10: 1185.20 | M10: 1382.80 | N10: 1580.30 | O10: 1777.90 | P10: 1975.40
A11: =IF(Selbstdeklaration!$F$75=B11,F11*Selbstdeklaration!$F$76/10,0) -> 0.00 | B11: 47000 | C11: 126.57 | D11: 0.2693% | F11: 393.43 | H11: 393.40 | I11: 590.10 | J11: 786.90 | K11: 983.60 | L11: 1180.30 | M11: 1377.00 | N11: 1573.70 | O11: 1770.40 | P11: 1967.10
A12: =IF(Selbstdeklaration!$F$75=B12,F12*Selbstdeklaration!$F$76/10,0) -> 0.00 | B12: 47500 | C12: 128.23 | D12: 0.2700% | F12: 391.77 | H12: 391.80 | I12: 587.70 | J12: 783.50 | K12: 979.40 | L12: 1175.30 | M12: 1371.20 | N12: 1567.10 | O12: 1763.00 | P12: 1958.80
A13: =IF(Selbstdeklaration!$F$75=B13,F13*Selbstdeklaration!$F$76/10,0) -> 0.00 | B13: 48000 | C13: 129.90 | D13: 0.2706% | F13: 390.10 | H13: 390.10 | I13: 585.20 | J13: 780.20 | K13: 975.30 | L13: 1170.30 | M13: 1365.40 | N13: 1560.40 | O13: 1755.50 | P13: 1950.50
A14: =IF(Selbstdeklaration!$F$75=B14,F14*Selbstdeklaration!$F$76/10,0) -> 0.00 | B14: 48500 | C14: 131.57 | D14: 0.2713% | F14: 388.43 | H14: 388.40 | I14: 582.60 | J14: 776.90 | K14: 971.10 | L14: 1165.30 | M14: 1359.50 | N14: 1553.70 | O14: 1747.90 | P14: 1942.20
A15: =IF(Selbstdeklaration!$F$75=B15,F15*Selbstdeklaration!$F$76/10,0) -> 0.00 | B15: 49000 | C15: 133.25 | D15: 0.2719% | F15: 386.75 | H15: 386.80 | I15: 580.10 | J15: 773.50 | K15: 966.90 | L15: 1160.30 | M15: 1353.60 | N15: 1547.00 | O15: 1740.40 | P15: 1933.80
A16: =IF(Selbstdeklaration!$F$75=B16,F16*Selbstdeklaration!$F$76/10,0) -> 0.00 | B16: 49500 | C16: 134.93 | D16: 0.2726% | F16: 385.07 | H16: 385.10 | I16: 577.60 | J16: 770.10 | K16: 962.70 | L16: 1155.20 | M16: 1347.70 | N16: 1540.30 | O16: 1732.80 | P16: 1925.30
A17: =IF(Selbstdeklaration!$F$75=B17,F17*Selbstdeklaration!$F$76/10,0) -> 0.00 | B17: 50000 | C17: 136.63 | D17: 0.2733% | F17: 383.37 | H17: 383.40 | I17: 575.10 | J17: 766.70 | K17: 958.40 | L17: 1150.10 | M17: 1341.80 | N17: 1533.50 | O17: 1725.20 | P17: 1916.90
A18: =IF(Selbstdeklaration!$F$75=B18,F18*Selbstdeklaration!$F$76/10,0) -> 0.00 | B18: 50500 | C18: 138.32 | D18: 0.2739% | F18: 381.68 | H18: 381.70 | I18: 572.50 | J18: 763.40 | K18: 954.20 | L18: 1145.00 | M18: 1335.90 | N18: 1526.70 | O18: 1717.50 | P18: 1908.40
A19: =IF(Selbstdeklaration!$F$75=B19,F19*Selbstdeklaration!$F$76/10,0) -> 0.00 | B19: 51000 | C19: 140.03 | D19: 0.2746% | F19: 379.97 | H19: 380.00 | I19: 570.00 | J19: 759.90 | K19: 949.90 | L19: 1139.90 | M19: 1329.90 | N19: 1519.90 | O19: 1709.90 | P19: 1899.80
A20: =IF(Selbstdeklaration!$F$75=B20,F20*Selbstdeklaration!$F$76/10,0) -> 0.00 | B20: 51500 | C20: 141.74 | D20: 0.2752% | F20: 378.26 | H20: 378.30 | I20: 567.40 | J20: 756.50 | K20: 945.60 | L20: 1134.80 | M20: 1323.90 | N20: 1513.00 | O20: 1702.20 | P20: 1891.30
A21: =IF(Selbstdeklaration!$F$75=B21,F21*Selbstdeklaration!$F$76/10,0) -> 0.00 | B21: 52000 | C21: 143.46 | D21: 0.2759% | F21: 376.54 | H21: 376.50 | I21: 564.80 | J21: 753.10 | K21: 941.30 | L21: 1129.60 | M21: 1317.90 | N21: 1506.20 | O21: 1694.40 | P21: 1882.70
A22: =IF(Selbstdeklaration!$F$75=B22,F22*Selbstdeklaration!$F$76/10,0) -> 0.00 | B22: 52500 | C22: 145.19 | D22: 0.2765% | F22: 374.81 | H22: 374.80 | I22: 562.20 | J22: 749.60 | K22: 937.00 | L22: 1124.40 | M22: 1311.80 | N22: 1499.30 | O22: 1686.70 | P22: 1874.10
A23: =IF(Selbstdeklaration!$F$75=B23,F23*Selbstdeklaration!$F$76/10,0) -> 0.00 | B23: 53000 | C23: 146.92 | D23: 0.2772% | F23: 373.08 | H23: 373.10 | I23: 559.60 | J23: 746.20 | K23: 932.70 | L23: 1119.20 | M23: 1305.80 | N23: 1492.30 | O23: 1678.90 | P23: 1865.40
A24: =IF(Selbstdeklaration!$F$75=B24,F24*Selbstdeklaration!$F$76/10,0) -> 0.00 | B24: 53500 | C24: 148.66 | D24: 0.2779% | F24: 371.34 | H24: 371.30 | I24: 557.00 | J24: 742.70 | K24: 928.40 | L24: 1114.00 | M24: 1299.70 | N24: 1485.40 | O24: 1671.00 | P24: 1856.70
A25: =IF(Selbstdeklaration!$F$75=B25,F25*Selbstdeklaration!$F$76/10,0) -> 0.00 | B25: 54000 | C25: 150.40 | D25: 0.2785% | F25: 369.60 | H25: 369.60 | I25: 554.40 | J25: 739.20 | K25: 924.00 | L25: 1108.80 | M25: 1293.60 | N25: 1478.40 | O25: 1663.20 | P25: 1848.00
A26: =IF(Selbstdeklaration!$F$75=B26,F26*Selbstdeklaration!$F$76/10,0) -> 0.00 | B26: 54500 | C26: 152.15 | D26: 0.2792% | F26: 367.85 | H26: 367.80 | I26: 551.80 | J26: 735.70 | K26: 919.60 | L26: 1103.50 | M26: 1287.50 | N26: 1471.40 | O26: 1655.30 | P26: 1839.20
A27: =IF(Selbstdeklaration!$F$75=B27,F27*Selbstdeklaration!$F$76/10,0) -> 0.00 | B27: 55000 | C27: 153.91 | D27: 0.2798% | F27: 366.09 | H27: 366.10 | I27: 549.10 | J27: 732.20 | K27: 915.20 | L27: 1098.30 | M27: 1281.30 | N27: 1464.40 | O27: 1647.40 | P27: 1830.40
A28: =IF(Selbstdeklaration!$F$75=B28,F28*Selbstdeklaration!$F$76/10,0) -> 0.00 | B28: 55500 | C28: 155.68 | D28: 0.2805% | F28: 364.32 | H28: 364.30 | I28: 546.50 | J28: 728.60 | K28: 910.80 | L28: 1093.00 | M28: 1275.10 | N28: 1457.30 | O28: 1639.50 | P28: 1821.60
A29: =IF(Selbstdeklaration!$F$75=B29,F29*Selbstdeklaration!$F$76/10,0) -> 0.00 | B29: 56000 | C29: 157.45 | D29: 0.2812% | F29: 362.55 | H29: 362.60 | I29: 543.80 | J29: 725.10 | K29: 906.40 | L29: 1087.70 | M29: 1268.90 | N29: 1450.20 | O29: 1631.50 | P29: 1812.80
A30: =IF(Selbstdeklaration!$F$75=B30,F30*Selbstdeklaration!$F$76/10,0) -> 0.00 | B30: 56500 | C30: 159.22 | D30: 0.2818% | F30: 360.78 | H30: 360.80 | I30: 541.20 | J30: 721.60 | K30: 901.90 | L30: 1082.30 | M30: 1262.70 | N30: 1443.10 | O30: 1623.50 | P30: 1803.90
A31: =IF(Selbstdeklaration!$F$75=B31,F31*Selbstdeklaration!$F$76/10,0) -> 0.00 | B31: 57000 | C31: 161.01 | D31: 0.2825% | F31: 358.99 | H31: 359.00 | I31: 538.50 | J31: 718.00 | K31: 897.50 | L31: 1077.00 | M31: 1256.50 | N31: 1436.00 | O31: 1615.50 | P31: 1795.00
A32: =IF(Selbstdeklaration!$F$75=B32,F32*Selbstdeklaration!$F$76/10,0) -> 0.00 | B32: 57500 | C32: 162.80 | D32: 0.2831% | F32: 357.20 | H32: 357.20 | I32: 535.80 | J32: 714.40 | K32: 893.00 | L32: 1071.60 | M32: 1250.20 | N32: 1428.80 | O32: 1607.40 | P32: 1786.00
A33: =IF(Selbstdeklaration!$F$75=B33,F33*Selbstdeklaration!$F$76/10,0) -> 0.00 | B33: 58000 | C33: 164.60 | D33: 0.2838% | F33: 355.40 | H33: 355.40 | I33: 533.10 | J33: 710.80 | K33: 888.50 | L33: 1066.20 | M33: 1243.90 | N33: 1421.60 | O33: 1599.30 | P33: 1777.00
A34: =IF(Selbstdeklaration!$F$75=B34,F34*Selbstdeklaration!$F$76/10,0) -> 0.00 | B34: 58500 | C34: 166.40 | D34: 0.2844% | F34: 353.60 | H34: 353.60 | I34: 530.40 | J34: 707.20 | K34: 884.00 | L34: 1060.80 | M34: 1237.60 | N34: 1414.40 | O34: 1591.20 | P34: 1768.00
A35: =IF(Selbstdeklaration!$F$75=B35,F35*Selbstdeklaration!$F$76/10,0) -> 0.00 | B35: 59000 | C35: 168.21 | D35: 0.2851% | F35: 351.79 | H35: 351.80 | I35: 527.70 | J35: 703.60 | K35: 879.50 | L35: 1055.40 | M35: 1231.30 | N35: 1407.20 | O35: 1583.00 | P35: 1758.90
A36: =IF(Selbstdeklaration!$F$75=B36,F36*Selbstdeklaration!$F$76/10,0) -> 0.00 | B36: 59500 | C36: 170.03 | D36: 0.2858% | F36: 349.97 | H36: 350.00 | I36: 525.00 | J36: 699.90 | K36: 874.90 | L36: 1049.90 | M36: 1224.90 | N36: 1399.90 | O36: 1574.90 | P36: 1749.90
A37: =IF(Selbstdeklaration!$F$75=B37,F37*Selbstdeklaration!$F$76/10,0) -> 0.00 | B37: 60000 | C37: 171.85 | D37: 0.2864% | F37: 348.15 | H37: 348.10 | I37: 522.20 | J37: 696.30 | K37: 870.40 | L37: 1044.40 | M37: 1218.50 | N37: 1392.60 | O37: 1566.70 | P37: 1740.70
A38: =IF(Selbstdeklaration!$F$75=B38,F38*Selbstdeklaration!$F$76/10,0) -> 0.00 | B38: 60500 | C38: 173.68 | D38: 0.2871% | F38: 346.32 | H38: 346.30 | I38: 519.50 | J38: 692.60 | K38: 865.80 | L38: 1038.90 | M38: 1212.10 | N38: 1385.30 | O38: 1558.40 | P38: 1731.60
A39: =IF(Selbstdeklaration!$F$75=B39,F39*Selbstdeklaration!$F$76/10,0) -> 0.00 | B39: 61000 | C39: 175.52 | D39: 0.2877% | F39: 344.48 | H39: 344.50 | I39: 516.70 | J39: 689.00 | K39: 861.20 | L39: 1033.40 | M39: 1205.70 | N39: 1377.90 | O39: 1550.20 | P39: 1722.40
A40: =IF(Selbstdeklaration!$F$75=B40,F40*Selbstdeklaration!$F$76/10,0) -> 0.00 | B40: 61500 | C40: 177.36 | D40: 0.2884% | F40: 342.64 | H40: 342.60 | I40: 514.00 | J40: 685.30 | K40: 856.60 | L40: 1027.90 | M40: 1199.20 | N40: 1370.50 | O40: 1541.90 | P40: 1713.20
A41: =IF(Selbstdeklaration!$F$75=B41,F41*Selbstdeklaration!$F$76/10,0) -> 0.00 | B41: 62000 | C41: 179.21 | D41: 0.2891% | F41: 340.79 | H41: 340.80 | I41: 511.20 | J41: 681.60 | K41: 852.00 | L41: 1022.40 | M41: 1192.70 | N41: 1363.10 | O41: 1533.50 | P41: 1703.90
A42: =IF(Selbstdeklaration!$F$75=B42,F42*Selbstdeklaration!$F$76/10,0) -> 0.00 | B42: 62500 | C42: 181.07 | D42: 0.2897% | F42: 338.93 | H42: 338.90 | I42: 508.40 | J42: 677.90 | K42: 847.30 | L42: 1016.80 | M42: 1186.20 | N42: 1355.70 | O42: 1525.20 | P42: 1694.60
A43: =IF(Selbstdeklaration!$F$75=B43,F43*Selbstdeklaration!$F$76/10,0) -> 0.00 | B43: 63000 | C43: 182.94 | D43: 0.2904% | F43: 337.06 | H43: 337.10 | I43: 505.60 | J43: 674.10 | K43: 842.70 | L43: 1011.20 | M43: 1179.70 | N43: 1348.30 | O43: 1516.80 | P43: 1685.30
A44: =IF(Selbstdeklaration!$F$75=B44,F44*Selbstdeklaration!$F$76/10,0) -> 0.00 | B44: 63500 | C44: 184.81 | D44: 0.2910% | F44: 335.19 | H44: 335.20 | I44: 502.80 | J44: 670.40 | K44: 838.00 | L44: 1005.60 | M44: 1173.20 | N44: 1340.80 | O44: 1508.40 | P44: 1676.00
A45: =IF(Selbstdeklaration!$F$75=B45,F45*Selbstdeklaration!$F$76/10,0) -> 0.00 | B45: 64000 | C45: 186.68 | D45: 0.2917% | F45: 333.32 | H45: 333.30 | I45: 500.00 | J45: 666.60 | K45: 833.30 | L45: 1000.00 | M45: 1166.60 | N45: 1333.30 | O45: 1499.90 | P45: 1666.60
A46: =IF(Selbstdeklaration!$F$75=B46,F46*Selbstdeklaration!$F$76/10,0) -> 0.00 | B46: 64500 | C46: 188.57 | D46: 0.2923% | F46: 331.43 | H46: 331.40 | I46: 497.20 | J46: 662.90 | K46: 828.60 | L46: 994.30 | M46: 1160.00 | N46: 1325.70 | O46: 1491.50 | P46: 1657.20
A47: =IF(Selbstdeklaration!$F$75=B47,F47*Selbstdeklaration!$F$76/10,0) -> 0.00 | B47: 65000 | C47: 190.45 | D47: 0.2930% | F47: 329.55 | H47: 329.50 | I47: 494.30 | J47: 659.10 | K47: 823.90 | L47: 988.60 | M47: 1153.40 | N47: 1318.20 | O47: 1483.00 | P47: 1647.70
A48: =IF(Selbstdeklaration!$F$75=B48,F48*Selbstdeklaration!$F$76/10,0) -> 0.00 | B48: 65500 | C48: 192.35 | D48: 0.2937% | F48: 327.65 | H48: 327.60 | I48: 491.50 | J48: 655.30 | K48: 819.10 | L48: 982.90 | M48: 1146.80 | N48: 1310.60 | O48: 1474.40 | P48: 1638.20
A49: =IF(Selbstdeklaration!$F$75=B49,F49*Selbstdeklaration!$F$76/10,0) -> 0.00 | B49: 66000 | C49: 194.25 | D49: 0.2943% | F49: 325.75 | H49: 325.70 | I49: 488.60 | J49: 651.50 | K49: 814.40 | L49: 977.20 | M49: 1140.10 | N49: 1303.00 | O49: 1465.90 | P49: 1628.70
A50: =IF(Selbstdeklaration!$F$75=B50,F50*Selbstdeklaration!$F$76/10,0) -> 0.00 | B50: 66500 | C50: 196.16 | D50: 0.2950% | F50: 323.84 | H50: 323.80 | I50: 485.80 | J50: 647.70 | K50: 809.60 | L50: 971.50 | M50: 1133.40 | N50: 1295.30 | O50: 1457.30 | P50: 1619.20
A51: =IF(Selbstdeklaration!$F$75=B51,F51*Selbstdeklaration!$F$76/10,0) -> 0.00 | B51: 67000 | C51: 198.08 | D51: 0.2956% | F51: 321.92 | H51: 321.90 | I51: 482.90 | J51: 643.80 | K51: 804.80 | L51: 965.80 | M51: 1126.70 | N51: 1287.70 | O51: 1448.60 | P51: 1609.60
A52: =IF(Selbstdeklaration!$F$75=B52,F52*Selbstdeklaration!$F$76/10,0) -> 0.00 | B52: 67500 | C52: 200.00 | D52: 0.2963% | F52: 320.00 | H52: 320.00 | I52: 480.00 | J52: 640.00 | K52: 800.00 | L52: 960.00 | M52: 1120.00 | N52: 1280.00 | O52: 1440.00 | P52: 1600.00
A53: =IF(Selbstdeklaration!$F$75=B53,F53*Selbstdeklaration!$F$76/10,0) -> 0.00 | B53: 68000 | C53: 201.93 | D53: 0.2970% | F53: 318.07 | H53: 318.10 | I53: 477.10 | J53: 636.10 | K53: 795.20 | L53: 954.20 | M53: 1113.20 | N53: 1272.30 | O53: 1431.30 | P53: 1590.30
A54: =IF(Selbstdeklaration!$F$75=B54,F54*Selbstdeklaration!$F$76/10,0) -> 0.00 | B54: 68500 | C54: 203.87 | D54: 0.2976% | F54: 316.13 | H54: 316.10 | I54: 474.20 | J54: 632.30 | K54: 790.30 | L54: 948.40 | M54: 1106.50 | N54: 1264.50 | O54: 1422.60 | P54: 1580.70
A55: =IF(Selbstdeklaration!$F$75=B55,F55*Selbstdeklaration!$F$76/10,0) -> 0.00 | B55: 69000 | C55: 205.81 | D55: 0.2983% | F55: 314.19 | H55: 314.20 | I55: 471.30 | J55: 628.40 | K55: 785.50 | L55: 942.60 | M55: 1099.70 | N55: 1256.80 | O55: 1413.90 | P55: 1570.90
A56: =IF(Selbstdeklaration!$F$75=B56,F56*Selbstdeklaration!$F$76/10,0) -> 0.00 | B56: 69500 | C56: 207.76 | D56: 0.2989% | F56: 312.24 | H56: 312.20 | I56: 468.40 | J56: 624.50 | K56: 780.60 | L56: 936.70 | M56: 1092.80 | N56: 1249.00 | O56: 1405.10 | P56: 1561.20
A57: =IF(Selbstdeklaration!$F$75=B57,F57*Selbstdeklaration!$F$76/10,0) -> 0.00 | B57: 70000 | C57: 209.71 | D57: 0.2996% | F57: 310.29 | H57: 310.30 | I57: 465.40 | J57: 620.60 | K57: 775.70 | L57: 930.90 | M57: 1086.00 | N57: 1241.10 | O57: 1396.30 | P57: 1551.40
A58: =IF(Selbstdeklaration!$F$75=B58,F58*Selbstdeklaration!$F$76/10,0) -> 0.00 | B58: 70500 | C58: 211.68 | D58: 0.3003% | F58: 308.32 | H58: 308.30 | I58: 462.50 | J58: 616.60 | K58: 770.80 | L58: 925.00 | M58: 1079.10 | N58: 1233.30 | O58: 1387.50 | P58: 1541.60
A59: =IF(Selbstdeklaration!$F$75=B59,F59*Selbstdeklaration!$F$76/10,0) -> 0.00 | B59: 71000 | C59: 213.65 | D59: 0.3009% | F59: 306.35 | H59: 306.40 | I59: 459.50 | J59: 612.70 | K59: 765.90 | L59: 919.10 | M59: 1072.20 | N59: 1225.40 | O59: 1378.60 | P59: 1531.80
A60: =IF(Selbstdeklaration!$F$75=B60,F60*Selbstdeklaration!$F$76/10,0) -> 0.00 | B60: 71500 | C60: 215.62 | D60: 0.3016% | F60: 304.38 | H60: 304.40 | I60: 456.60 | J60: 608.80 | K60: 760.90 | L60: 913.10 | M60: 1065.30 | N60: 1217.50 | O60: 1369.70 | P60: 1521.90
A61: =IF(Selbstdeklaration!$F$75=B61,F61*Selbstdeklaration!$F$76/10,0) -> 0.00 | B61: 72000 | C61: 217.60 | D61: 0.3022% | F61: 302.40 | H61: 302.40 | I61: 453.60 | J61: 604.80 | K61: 756.00 | L61: 907.20 | M61: 1058.40 | N61: 1209.60 | O61: 1360.80 | P61: 1512.00
A62: =IF(Selbstdeklaration!$F$75=B62,F62*Selbstdeklaration!$F$76/10,0) -> 0.00 | B62: 72500 | C62: 219.59 | D62: 0.3029% | F62: 300.41 | H62: 300.40 | I62: 450.60 | J62: 600.80 | K62: 751.00 | L62: 901.20 | M62: 1051.40 | N62: 1201.60 | O62: 1351.80 | P62: 1502.00
A63: =IF(Selbstdeklaration!$F$75=B63,F63*Selbstdeklaration!$F$76/10,0) -> 0.00 | B63: 73000 | C63: 221.59 | D63: 0.3035% | F63: 298.41 | H63: 298.40 | I63: 447.60 | J63: 596.80 | K63: 746.00 | L63: 895.20 | M63: 1044.40 | N63: 1193.70 | O63: 1342.90 | P63: 1492.10
A64: =IF(Selbstdeklaration!$F$75=B64,F64*Selbstdeklaration!$F$76/10,0) -> 0.00 | B64: 73500 | C64: 223.59 | D64: 0.3042% | F64: 296.41 | H64: 296.40 | I64: 444.60 | J64: 592.80 | K64: 741.00 | L64: 889.20 | M64: 1037.40 | N64: 1185.60 | O64: 1333.90 | P64: 1482.10
A65: =IF(Selbstdeklaration!$F$75=B65,F65*Selbstdeklaration!$F$76/10,0) -> 0.00 | B65: 74000 | C65: 225.60 | D65: 0.3049% | F65: 294.40 | H65: 294.40 | I65: 441.60 | J65: 588.80 | K65: 736.00 | L65: 883.20 | M65: 1030.40 | N65: 1177.60 | O65: 1324.80 | P65: 1472.00
A66: =IF(Selbstdeklaration!$F$75=B66,F66*Selbstdeklaration!$F$76/10,0) -> 0.00 | B66: 74500 | C66: 227.61 | D66: 0.3055% | F66: 292.39 | H66: 292.40 | I66: 438.60 | J66: 584.80 | K66: 731.00 | L66: 877.20 | M66: 1023.40 | N66: 1169.60 | O66: 1315.70 | P66: 1461.90
A67: =IF(Selbstdeklaration!$F$75=B67,F67*Selbstdeklaration!$F$76/10,0) -> 0.00 | B67: 75000 | C67: 229.63 | D67: 0.3062% | F67: 290.37 | H67: 290.40 | I67: 435.60 | J67: 580.70 | K67: 725.90 | L67: 871.10 | M67: 1016.30 | N67: 1161.50 | O67: 1306.70 | P67: 1451.80
A68: =IF(Selbstdeklaration!$F$75=B68,F68*Selbstdeklaration!$F$76/10,0) -> 0.00 | B68: 75500 | C68: 231.66 | D68: 0.3068% | F68: 288.34 | H68: 288.30 | I68: 432.50 | J68: 576.70 | K68: 720.80 | L68: 865.00 | M68: 1009.20 | N68: 1153.40 | O68: 1297.50 | P68: 1441.70
A69: =IF(Selbstdeklaration!$F$75=B69,F69*Selbstdeklaration!$F$76/10,0) -> 0.00 | B69: 76000 | C69: 233.70 | D69: 0.3075% | F69: 286.30 | H69: 286.30 | I69: 429.50 | J69: 572.60 | K69: 715.80 | L69: 858.90 | M69: 1002.10 | N69: 1145.20 | O69: 1288.40 | P69: 1431.50
A70: =IF(Selbstdeklaration!$F$75=B70,F70*Selbstdeklaration!$F$76/10,0) -> 0.00 | B70: 76500 | C70: 235.74 | D70: 0.3082% | F70: 284.26 | H70: 284.30 | I70: 426.40 | J70: 568.50 | K70: 710.70 | L70: 852.80 | M70: 994.90 | N70: 1137.10 | O70: 1279.20 | P70: 1421.30
A71: =IF(Selbstdeklaration!$F$75=B71,F71*Selbstdeklaration!$F$76/10,0) -> 0.00 | B71: 77000 | C71: 237.79 | D71: 0.3088% | F71: 282.21 | H71: 282.20 | I71: 423.30 | J71: 564.40 | K71: 705.50 | L71: 846.60 | M71: 987.80 | N71: 1128.90 | O71: 1270.00 | P71: 1411.10
A72: =IF(Selbstdeklaration!$F$75=B72,F72*Selbstdeklaration!$F$76/10,0) -> 0.00 | B72: 77500 | C72: 239.84 | D72: 0.3095% | F72: =+$F$5-C72 -> 280.16 | H72: 280.20 | I72: =ROUND($F$5*1.5-C72*1.5,1) -> 420.20 | J72: =ROUND($F$5*2-C72*2,1) -> 560.30 | K72: =ROUND($F$5*2.5-C72*2.5,1) -> 700.40 | L72: =ROUND($F$5*3-C72*3,1) -> 840.50 | M72: =ROUND($F$5*3.5-C72*3.5,1) -> 980.60 | N72: =ROUND($F$5*4-C72*4,1) -> 1120.60 | O72: =ROUND($F$5*4.5-C72*4.5,1) -> 1260.70 | P72: =ROUND($F$5*5-C72*5,1) -> 1400.80
A73: =IF(Selbstdeklaration!$F$75=B73,F73*Selbstdeklaration!$F$76/10,0) -> 0.00 | B73: 78000 | C73: =+B73*D73 -> 241.90 | D73: =D72+($D$187-$D$7)/90000*500 -> 0.3101% | F73: 278.10 | H73: =ROUND($F$5-C73,1) -> 278.10 | I73: 417.10 | J73: 556.20 | K73: 695.20 | L73: 834.30 | M73: 973.30 | N73: 1112.40 | O73: 1251.40 | P73: 1390.50
A74: =IF(Selbstdeklaration!$F$75=B74,F74*Selbstdeklaration!$F$76/10,0) -> 0.00 | B74: 78500 | C74: 243.97 | D74: 0.3108% | F74: 276.03 | H74: 276.00 | I74: 414.00 | J74: 552.10 | K74: 690.10 | L74: 828.10 | M74: 966.10 | N74: 1104.10 | O74: 1242.10 | P74: 1380.20
A75: =IF(Selbstdeklaration!$F$75=B75,F75*Selbstdeklaration!$F$76/10,0) -> 0.00 | B75: 79000 | C75: 246.04 | D75: 0.3114% | F75: 273.96 | H75: 274.00 | I75: 410.90 | J75: 547.90 | K75: 684.90 | L75: 821.90 | M75: 958.90 | N75: 1095.80 | O75: 1232.80 | P75: 1369.80
A76: =IF(Selbstdeklaration!$F$75=B76,F76*Selbstdeklaration!$F$76/10,0) -> 0.00 | B76: 79500 | C76: 248.12 | D76: 0.3121% | F76: 271.88 | H76: 271.90 | I76: 407.80 | J76: 543.80 | K76: 679.70 | L76: 815.60 | M76: 951.60 | N76: 1087.50 | O76: 1223.40 | P76: 1359.40
A77: =IF(Selbstdeklaration!$F$75=B77,F77*Selbstdeklaration!$F$76/10,0) -> 0.00 | B77: 80000 | C77: 250.21 | D77: 0.3128% | F77: 269.79 | H77: 269.80 | I77: 404.70 | J77: 539.60 | K77: 674.50 | L77: 809.40 | M77: 944.30 | N77: 1079.20 | O77: 1214.10 | P77: 1348.90
A78: =IF(Selbstdeklaration!$F$75=B78,F78*Selbstdeklaration!$F$76/10,0) -> 0.00 | B78: 80500 | C78: 252.30 | D78: 0.3134% | F78: 267.70 | H78: 267.70 | I78: 401.50 | J78: 535.40 | K78: 669.20 | L78: 803.10 | M78: 936.90 | N78: 1070.80 | O78: 1204.60 | P78: 1338.50
A79: =IF(Selbstdeklaration!$F$75=B79,F79*Selbstdeklaration!$F$76/10,0) -> 0.00 | B79: 81000 | C79: 254.40 | D79: 0.3141% | F79: 265.60 | H79: 265.60 | I79: 398.40 | J79: 531.20 | K79: 664.00 | L79: 796.80 | M79: 929.60 | N79: 1062.40 | O79: 1195.20 | P79: 1328.00
A80: =IF(Selbstdeklaration!$F$75=B80,F80*Selbstdeklaration!$F$76/10,0) -> 0.00 | B80: 81500 | C80: 256.51 | D80: 0.3147% | F80: 263.49 | H80: 263.50 | I80: 395.20 | J80: 527.00 | K80: 658.70 | L80: 790.50 | M80: 922.20 | N80: 1054.00 | O80: 1185.70 | P80: 1317.40
A81: =IF(Selbstdeklaration!$F$75=B81,F81*Selbstdeklaration!$F$76/10,0) -> 0.00 | B81: 82000 | C81: 258.63 | D81: 0.3154% | F81: 261.37 | H81: 261.40 | I81: 392.10 | J81: 522.70 | K81: 653.40 | L81: 784.10 | M81: 914.80 | N81: 1045.50 | O81: 1176.20 | P81: 1306.90
A82: =IF(Selbstdeklaration!$F$75=B82,F82*Selbstdeklaration!$F$76/10,0) -> 0.00 | B82: 82500 | C82: 260.75 | D82: 0.3161% | F82: 259.25 | H82: 259.30 | I82: 388.90 | J82: 518.50 | K82: 648.10 | L82: 777.80 | M82: 907.40 | N82: 1037.00 | O82: 1166.60 | P82: 1296.30
A83: =IF(Selbstdeklaration!$F$75=B83,F83*Selbstdeklaration!$F$76/10,0) -> 0.00 | B83: 83000 | C83: 262.87 | D83: 0.3167% | F83: 257.13 | H83: 257.10 | I83: 385.70 | J83: 514.30 | K83: 642.80 | L83: 771.40 | M83: 899.90 | N83: 1028.50 | O83: 1157.10 | P83: 1285.60
A84: =IF(Selbstdeklaration!$F$75=B84,F84*Selbstdeklaration!$F$76/10,0) -> 0.00 | B84: 83500 | C84: 265.01 | D84: 0.3174% | F84: 254.99 | H84: 255.00 | I84: 382.50 | J84: 510.00 | K84: 637.50 | L84: 765.00 | M84: 892.50 | N84: 1020.00 | O84: 1147.50 | P84: 1275.00
A85: =IF(Selbstdeklaration!$F$75=B85,F85*Selbstdeklaration!$F$76/10,0) -> 0.00 | B85: 84000 | C85: 267.15 | D85: 0.3180% | F85: 252.85 | H85: 252.90 | I85: 379.30 | J85: 505.70 | K85: 632.10 | L85: 758.60 | M85: 885.00 | N85: 1011.40 | O85: 1137.80 | P85: 1264.30
A86: =IF(Selbstdeklaration!$F$75=B86,F86*Selbstdeklaration!$F$76/10,0) -> 0.00 | B86: 84500 | C86: 269.29 | D86: 0.3187% | F86: 250.71 | H86: 250.70 | I86: 376.10 | J86: 501.40 | K86: 626.80 | L86: 752.10 | M86: 877.50 | N86: 1002.80 | O86: 1128.20 | P86: 1253.50
A87: =IF(Selbstdeklaration!$F$75=B87,F87*Selbstdeklaration!$F$76/10,0) -> 0.00 | B87: 85000 | C87: 271.45 | D87: 0.3193% | F87: 248.55 | H87: 248.60 | I87: 372.80 | J87: 497.10 | K87: 621.40 | L87: 745.70 | M87: 869.90 | N87: 994.20 | O87: 1118.50 | P87: 1242.80
A88: =IF(Selbstdeklaration!$F$75=B88,F88*Selbstdeklaration!$F$76/10,0) -> 0.00 | B88: 85500 | C88: 273.61 | D88: 0.3200% | F88: 246.39 | H88: 246.40 | I88: 369.60 | J88: 492.80 | K88: 616.00 | L88: 739.20 | M88: 862.40 | N88: 985.60 | O88: 1108.80 | P88: 1232.00
A89: =IF(Selbstdeklaration!$F$75=B89,F89*Selbstdeklaration!$F$76/10,0) -> 0.00 | B89: 86000 | C89: 275.77 | D89: 0.3207% | F89: 244.23 | H89: 244.20 | I89: 366.30 | J89: 488.50 | K89: 610.60 | L89: 732.70 | M89: 854.80 | N89: 976.90 | O89: 1099.00 | P89: 1221.10
A90: =IF(Selbstdeklaration!$F$75=B90,F90*Selbstdeklaration!$F$76/10,0) -> 0.00 | B90: 86500 | C90: 277.95 | D90: 0.3213% | F90: 242.05 | H90: 242.10 | I90: 363.10 | J90: 484.10 | K90: 605.10 | L90: 726.20 | M90: 847.20 | N90: 968.20 | O90: 1089.20 | P90: 1210.30
A91: =IF(Selbstdeklaration!$F$75=B91,F91*Selbstdeklaration!$F$76/10,0) -> 0.00 | B91: 87000 | C91: 280.12 | D91: 0.3220% | F91: 239.88 | H91: 239.90 | I91: 359.80 | J91: 479.80 | K91: 599.70 | L91: 719.60 | M91: 839.60 | N91: 959.50 | O91: 1079.40 | P91: 1199.40
A92: =IF(Selbstdeklaration!$F$75=B92,F92*Selbstdeklaration!$F$76/10,0) -> 0.00 | B92: 87500 | C92: 282.31 | D92: 0.3226% | F92: 237.69 | H92: 237.70 | I92: 356.50 | J92: 475.40 | K92: 594.20 | L92: 713.10 | M92: 831.90 | N92: 950.80 | O92: 1069.60 | P92: 1188.40
A93: =IF(Selbstdeklaration!$F$75=B93,F93*Selbstdeklaration!$F$76/10,0) -> 0.00 | B93: 88000 | C93: 284.50 | D93: 0.3233% | F93: 235.50 | H93: 235.50 | I93: 353.20 | J93: 471.00 | K93: 588.70 | L93: 706.50 | M93: 824.20 | N93: 942.00 | O93: 1059.70 | P93: 1177.50
A94: =IF(Selbstdeklaration!$F$75=B94,F94*Selbstdeklaration!$F$76/10,0) -> 0.00 | B94: 88500 | C94: 286.70 | D94: 0.3240% | F94: 233.30 | H94: 233.30 | I94: 349.90 | J94: 466.60 | K94: 583.20 | L94: 699.90 | M94: 816.50 | N94: 933.20 | O94: 1049.80 | P94: 1166.50
A95: =IF(Selbstdeklaration!$F$75=B95,F95*Selbstdeklaration!$F$76/10,0) -> 0.00 | B95: 89000 | C95: 288.91 | D95: 0.3246% | F95: 231.09 | H95: 231.10 | I95: 346.60 | J95: 462.20 | K95: 577.70 | L95: 693.30 | M95: 808.80 | N95: 924.40 | O95: 1039.90 | P95: 1155.50
A96: =IF(Selbstdeklaration!$F$75=B96,F96*Selbstdeklaration!$F$76/10,0) -> 0.00 | B96: 89500 | C96: 291.12 | D96: 0.3253% | F96: 228.88 | H96: 228.90 | I96: 343.30 | J96: 457.80 | K96: 572.20 | L96: 686.60 | M96: 801.10 | N96: 915.50 | O96: 1030.00 | P96: 1144.40
A97: =IF(Selbstdeklaration!$F$75=B97,F97*Selbstdeklaration!$F$76/10,0) -> 0.00 | B97: 90000 | C97: 293.34 | D97: 0.3259% | F97: 226.66 | H97: 226.70 | I97: 340.00 | J97: 453.30 | K97: 566.60 | L97: 680.00 | M97: 793.30 | N97: 906.60 | O97: 1020.00 | P97: 1133.30
A98: =IF(Selbstdeklaration!$F$75=B98,F98*Selbstdeklaration!$F$76/10,0) -> 0.00 | B98: 90500 | C98: 295.57 | D98: 0.3266% | F98: 224.43 | H98: 224.40 | I98: 336.70 | J98: 448.90 | K98: 561.10 | L98: 673.30 | M98: 785.50 | N98: 897.70 | O98: 1010.00 | P98: 1122.20
A99: =IF(Selbstdeklaration!$F$75=B99,F99*Selbstdeklaration!$F$76/10,0) -> 0.00 | B99: 91000 | C99: 297.80 | D99: 0.3273% | F99: 222.20 | H99: 222.20 | I99: 333.30 | J99: 444.40 | K99: 555.50 | L99: 666.60 | M99: 777.70 | N99: 888.80 | O99: 999.90 | P99: 1111.00
A100: =IF(Selbstdeklaration!$F$75=B100,F100*Selbstdeklaration!$F$76/10,0) -> 0.00 | B100: 91500 | C100: 300.04 | D100: 0.3279% | F100: 219.96 | H100: 220.00 | I100: 329.90 | J100: 439.90 | K100: 549.90 | L100: 659.90 | M100: 769.90 | N100: 879.90 | O100: 989.80 | P100: 1099.80
A101: =IF(Selbstdeklaration!$F$75=B101,F101*Selbstdeklaration!$F$76/10,0) -> 0.00 | B101: 92000 | C101: 302.28 | D101: 0.3286% | F101: 217.72 | H101: 217.70 | I101: 326.60 | J101: 435.40 | K101: 544.30 | L101: 653.20 | M101: 762.00 | N101: 870.90 | O101: 979.70 | P101: 1088.60
A102: =IF(Selbstdeklaration!$F$75=B102,F102*Selbstdeklaration!$F$76/10,0) -> 0.00 | B102: 92500 | C102: 304.53 | D102: 0.3292% | F102: 215.47 | H102: 215.50 | I102: 323.20 | J102: 430.90 | K102: 538.70 | L102: 646.40 | M102: 754.10 | N102: 861.90 | O102: 969.60 | P102: 1077.30
A103: =IF(Selbstdeklaration!$F$75=B103,F103*Selbstdeklaration!$F$76/10,0) -> 0.00 | B103: 93000 | C103: 306.79 | D103: 0.3299% | F103: 213.21 | H103: 213.20 | I103: 319.80 | J103: 426.40 | K103: 533.00 | L103: 639.60 | M103: 746.20 | N103: 852.80 | O103: 959.40 | P103: 1066.00
A104: =IF(Selbstdeklaration!$F$75=B104,F104*Selbstdeklaration!$F$76/10,0) -> 0.00 | B104: 93500 | C104: 309.06 | D104: 0.3305% | F104: 210.94 | H104: 210.90 | I104: 316.40 | J104: 421.90 | K104: 527.40 | L104: 632.80 | M104: 738.30 | N104: 843.80 | O104: 949.20 | P104: 1054.70
A105: =IF(Selbstdeklaration!$F$75=B105,F105*Selbstdeklaration!$F$76/10,0) -> 0.00 | B105: 94000 | C105: 311.33 | D105: 0.3312% | F105: 208.67 | H105: 208.70 | I105: 313.00 | J105: 417.30 | K105: 521.70 | L105: 626.00 | M105: 730.30 | N105: 834.70 | O105: 939.00 | P105: 1043.40
A106: =IF(Selbstdeklaration!$F$75=B106,F106*Selbstdeklaration!$F$76/10,0) -> 0.00 | B106: 94500 | C106: 313.61 | D106: 0.3319% | F106: 206.39 | H106: 206.40 | I106: 309.60 | J106: 412.80 | K106: 516.00 | L106: 619.20 | M106: 722.40 | N106: 825.60 | O106: 928.80 | P106: 1032.00
A107: =IF(Selbstdeklaration!$F$75=B107,F107*Selbstdeklaration!$F$76/10,0) -> 0.00 | B107: 95000 | C107: 315.89 | D107: 0.3325% | F107: 204.11 | H107: 204.10 | I107: 306.20 | J107: 408.20 | K107: 510.30 | L107: 612.30 | M107: 714.40 | N107: 816.40 | O107: 918.50 | P107: 1020.50
A108: =IF(Selbstdeklaration!$F$75=B108,F108*Selbstdeklaration!$F$76/10,0) -> 0.00 | B108: 95500 | C108: 318.18 | D108: 0.3332% | F108: 201.82 | H108: 201.80 | I108: 302.70 | J108: 403.60 | K108: 504.50 | L108: 605.40 | M108: 706.40 | N108: 807.30 | O108: 908.20 | P108: 1009.10
A109: =IF(Selbstdeklaration!$F$75=B109,F109*Selbstdeklaration!$F$76/10,0) -> 0.00 | B109: 96000 | C109: 320.48 | D109: 0.3338% | F109: 199.52 | H109: 199.50 | I109: 299.30 | J109: 399.00 | K109: 498.80 | L109: 598.60 | M109: 698.30 | N109: 798.10 | O109: 897.80 | P109: 997.60
A110: =IF(Selbstdeklaration!$F$75=B110,F110*Selbstdeklaration!$F$76/10,0) -> 0.00 | B110: 96500 | C110: 322.79 | D110: 0.3345% | F110: 197.21 | H110: 197.20 | I110: 295.80 | J110: 394.40 | K110: 493.00 | L110: 591.60 | M110: 690.20 | N110: 788.90 | O110: 887.50 | P110: 986.10
A111: =IF(Selbstdeklaration!$F$75=B111,F111*Selbstdeklaration!$F$76/10,0) -> 0.00 | B111: 97000 | C111: 325.10 | D111: 0.3352% | F111: 194.90 | H111: 194.90 | I111: 292.40 | J111: 389.80 | K111: 487.30 | L111: 584.70 | M111: 682.20 | N111: 779.60 | O111: 877.10 | P111: 974.50
A112: =IF(Selbstdeklaration!$F$75=B112,F112*Selbstdeklaration!$F$76/10,0) -> 0.00 | B112: 97500 | C112: 327.42 | D112: 0.3358% | F112: 192.58 | H112: 192.60 | I112: 288.90 | J112: 385.20 | K112: 481.50 | L112: 577.80 | M112: 674.00 | N112: 770.30 | O112: 866.60 | P112: 962.90
A113: =IF(Selbstdeklaration!$F$75=B113,F113*Selbstdeklaration!$F$76/10,0) -> 0.00 | B113: 98000 | C113: 329.74 | D113: 0.3365% | F113: 190.26 | H113: 190.30 | I113: 285.40 | J113: 380.50 | K113: 475.60 | L113: 570.80 | M113: 665.90 | N113: 761.00 | O113: 856.20 | P113: 951.30
A114: =IF(Selbstdeklaration!$F$75=B114,F114*Selbstdeklaration!$F$76/10,0) -> 0.00 | B114: 98500 | C114: 332.07 | D114: 0.3371% | F114: 187.93 | H114: 187.90 | I114: 281.90 | J114: 375.90 | K114: 469.80 | L114: 563.80 | M114: 657.80 | N114: 751.70 | O114: 845.70 | P114: 939.60
A115: =IF(Selbstdeklaration!$F$75=B115,F115*Selbstdeklaration!$F$76/10,0) -> 0.00 | B115: 99000 | C115: 334.41 | D115: 0.3378% | F115: 185.59 | H115: 185.60 | I115: 278.40 | J115: 371.20 | K115: 464.00 | L115: 556.80 | M115: 649.60 | N115: 742.40 | O115: 835.20 | P115: 928.00
A116: =IF(Selbstdeklaration!$F$75=B116,F116*Selbstdeklaration!$F$76/10,0) -> 0.00 | B116: 99500 | C116: 336.75 | D116: 0.3384% | F116: 183.25 | H116: 183.20 | I116: 274.90 | J116: 366.50 | K116: 458.10 | L116: 549.70 | M116: 641.40 | N116: 733.00 | O116: 824.60 | P116: 916.20
A117: =IF(Selbstdeklaration!$F$75=B117,F117*Selbstdeklaration!$F$76/10,0) -> 0.00 | B117: 100000 | C117: 339.10 | D117: 0.3391% | F117: 180.90 | H117: 180.90 | I117: 271.30 | J117: 361.80 | K117: 452.20 | L117: 542.70 | M117: 633.10 | N117: 723.60 | O117: 814.00 | P117: 904.50
A118: =IF(Selbstdeklaration!$F$75=B118,F118*Selbstdeklaration!$F$76/10,0) -> 0.00 | B118: 100500 | C118: 341.46 | D118: 0.3398% | F118: 178.54 | H118: 178.50 | I118: 267.80 | J118: 357.10 | K118: 446.30 | L118: 535.60 | M118: 624.90 | N118: 714.20 | O118: 803.40 | P118: 892.70
A119: =IF(Selbstdeklaration!$F$75=B119,F119*Selbstdeklaration!$F$76/10,0) -> 0.00 | B119: 101000 | C119: 343.82 | D119: 0.3404% | F119: 176.18 | H119: 176.20 | I119: 264.30 | J119: 352.40 | K119: 440.40 | L119: 528.50 | M119: 616.60 | N119: 704.70 | O119: 792.80 | P119: 880.90
A120: =IF(Selbstdeklaration!$F$75=B120,F120*Selbstdeklaration!$F$76/10,0) -> 0.00 | B120: 101500 | C120: 346.20 | D120: 0.3411% | F120: 173.80 | H120: 173.80 | I120: 260.70 | J120: 347.60 | K120: 434.50 | L120: 521.40 | M120: 608.30 | N120: 695.20 | O120: 782.10 | P120: 869.00
A121: =IF(Selbstdeklaration!$F$75=B121,F121*Selbstdeklaration!$F$76/10,0) -> 0.00 | B121: 102000 | C121: 348.57 | D121: 0.3417% | F121: 171.43 | H121: 171.40 | I121: 257.10 | J121: 342.90 | K121: 428.60 | L121: 514.30 | M121: 600.00 | N121: 685.70 | O121: 771.40 | P121: 857.10
A122: =IF(Selbstdeklaration!$F$75=B122,F122*Selbstdeklaration!$F$76/10,0) -> 0.00 | B122: 102500 | C122: 350.96 | D122: 0.3424% | F122: 169.04 | H122: 169.00 | I122: 253.60 | J122: 338.10 | K122: 422.60 | L122: 507.10 | M122: 591.70 | N122: 676.20 | O122: 760.70 | P122: 845.20
A123: =IF(Selbstdeklaration!$F$75=B123,F123*Selbstdeklaration!$F$76/10,0) -> 0.00 | B123: 103000 | C123: 353.35 | D123: 0.3431% | F123: 166.65 | H123: 166.70 | I123: 250.00 | J123: 333.30 | K123: 416.60 | L123: 500.00 | M123: 583.30 | N123: 666.60 | O123: 749.90 | P123: 833.30
A124: =IF(Selbstdeklaration!$F$75=B124,F124*Selbstdeklaration!$F$76/10,0) -> 0.00 | B124: 103500 | C124: 355.74 | D124: 0.3437% | F124: 164.26 | H124: 164.30 | I124: 246.40 | J124: 328.50 | K124: 410.60 | L124: 492.80 | M124: 574.90 | N124: 657.00 | O124: 739.20 | P124: 821.30
A125: =IF(Selbstdeklaration!$F$75=B125,F125*Selbstdeklaration!$F$76/10,0) -> 0.00 | B125: 104000 | C125: 358.15 | D125: 0.3444% | F125: 161.85 | H125: 161.90 | I125: 242.80 | J125: 323.70 | K125: 404.60 | L125: 485.60 | M125: 566.50 | N125: 647.40 | O125: 728.30 | P125: 809.30
A126: =IF(Selbstdeklaration!$F$75=B126,F126*Selbstdeklaration!$F$76/10,0) -> 0.00 | B126: 104500 | C126: 360.56 | D126: 0.3450% | F126: 159.44 | H126: 159.40 | I126: 239.20 | J126: 318.90 | K126: 398.60 | L126: 478.30 | M126: 558.10 | N126: 637.80 | O126: 717.50 | P126: 797.20
A127: =IF(Selbstdeklaration!$F$75=B127,F127*Selbstdeklaration!$F$76/10,0) -> 0.00 | B127: 105000 | C127: 362.97 | D127: 0.3457% | F127: 157.03 | H127: 157.00 | I127: 235.50 | J127: 314.10 | K127: 392.60 | L127: 471.10 | M127: 549.60 | N127: 628.10 | O127: 706.60 | P127: 785.10
A128: =IF(Selbstdeklaration!$F$75=B128,F128*Selbstdeklaration!$F$76/10,0) -> 0.00 | B128: 105500 | C128: 365.40 | D128: 0.3463% | F128: 154.60 | H128: 154.60 | I128: 231.90 | J128: 309.20 | K128: 386.50 | L128: 463.80 | M128: 541.10 | N128: 618.40 | O128: 695.70 | P128: 773.00
A129: =IF(Selbstdeklaration!$F$75=B129,F129*Selbstdeklaration!$F$76/10,0) -> 0.00 | B129: 106000 | C129: 367.83 | D129: 0.3470% | F129: 152.17 | H129: 152.20 | I129: 228.30 | J129: 304.30 | K129: 380.40 | L129: 456.50 | M129: 532.60 | N129: 608.70 | O129: 684.80 | P129: 760.90
A130: =IF(Selbstdeklaration!$F$75=B130,F130*Selbstdeklaration!$F$76/10,0) -> 0.00 | B130: 106500 | C130: 370.26 | D130: 0.3477% | F130: 149.74 | H130: 149.70 | I130: 224.60 | J130: 299.50 | K130: 374.30 | L130: 449.20 | M130: 524.10 | N130: 598.90 | O130: 673.80 | P130: 748.70
A131: =IF(Selbstdeklaration!$F$75=B131,F131*Selbstdeklaration!$F$76/10,0) -> 0.00 | B131: 107000 | C131: 372.71 | D131: 0.3483% | F131: 147.29 | H131: 147.30 | I131: 220.90 | J131: 294.60 | K131: 368.20 | L131: 441.90 | M131: 515.50 | N131: 589.20 | O131: 662.80 | P131: 736.50
A132: =IF(Selbstdeklaration!$F$75=B132,F132*Selbstdeklaration!$F$76/10,0) -> 0.00 | B132: 107500 | C132: 375.16 | D132: 0.3490% | F132: 144.84 | H132: 144.80 | I132: 217.30 | J132: 289.70 | K132: 362.10 | L132: 434.50 | M132: 507.00 | N132: 579.40 | O132: 651.80 | P132: 724.20
A133: =IF(Selbstdeklaration!$F$75=B133,F133*Selbstdeklaration!$F$76/10,0) -> 0.00 | B133: 108000 | C133: 377.61 | D133: 0.3496% | F133: 142.39 | H133: 142.40 | I133: 213.60 | J133: 284.80 | K133: 356.00 | L133: 427.20 | M133: 498.40 | N133: 569.60 | O133: 640.70 | P133: 711.90
A134: =IF(Selbstdeklaration!$F$75=B134,F134*Selbstdeklaration!$F$76/10,0) -> 0.00 | B134: 108500 | C134: 380.07 | D134: 0.3503% | F134: 139.93 | H134: 139.90 | I134: 209.90 | J134: 279.90 | K134: 349.80 | L134: 419.80 | M134: 489.70 | N134: 559.70 | O134: 629.70 | P134: 699.60
A135: =IF(Selbstdeklaration!$F$75=B135,F135*Selbstdeklaration!$F$76/10,0) -> 0.00 | B135: 109000 | C135: 382.54 | D135: 0.3510% | F135: 137.46 | H135: 137.50 | I135: 206.20 | J135: 274.90 | K135: 343.60 | L135: 412.40 | M135: 481.10 | N135: 549.80 | O135: 618.60 | P135: 687.30
A136: =IF(Selbstdeklaration!$F$75=B136,F136*Selbstdeklaration!$F$76/10,0) -> 0.00 | B136: 109500 | C136: 385.02 | D136: 0.3516% | F136: =+$F$5-C136 -> 134.98 | H136: 135.00 | I136: =ROUND($F$5*1.5-C136*1.5,1) -> 202.50 | J136: =ROUND($F$5*2-C136*2,1) -> 270.00 | K136: =ROUND($F$5*2.5-C136*2.5,1) -> 337.50 | L136: =ROUND($F$5*3-C136*3,1) -> 404.90 | M136: =ROUND($F$5*3.5-C136*3.5,1) -> 472.40 | N136: =ROUND($F$5*4-C136*4,1) -> 539.90 | O136: =ROUND($F$5*4.5-C136*4.5,1) -> 607.40 | P136: =ROUND($F$5*5-C136*5,1) -> 674.90
A137: =IF(Selbstdeklaration!$F$75=B137,F137*Selbstdeklaration!$F$76/10,0) -> 0.00 | B137: 110000 | C137: =+B137*D137 -> 387.50 | D137: =D136+($D$187-$D$7)/90000*500 -> 0.3523% | F137: 132.50 | H137: =ROUND($F$5-C137,1) -> 132.50 | I137: 198.70 | J137: 265.00 | K137: 331.20 | L137: 397.50 | M137: 463.70 | N137: 530.00 | O137: 596.20 | P137: 662.50
A138: =IF(Selbstdeklaration!$F$75=B138,F138*Selbstdeklaration!$F$76/10,0) -> 0.00 | B138: 110500 | C138: 389.99 | D138: 0.3529% | F138: 130.01 | H138: 130.00 | I138: 195.00 | J138: 260.00 | K138: 325.00 | L138: 390.00 | M138: 455.00 | N138: 520.00 | O138: 585.00 | P138: 650.00
A139: =IF(Selbstdeklaration!$F$75=B139,F139*Selbstdeklaration!$F$76/10,0) -> 0.00 | B139: 111000 | C139: 392.49 | D139: 0.3536% | F139: 127.51 | H139: 127.50 | I139: 191.30 | J139: 255.00 | K139: 318.80 | L139: 382.50 | M139: 446.30 | N139: 510.10 | O139: 573.80 | P139: 637.60
A140: =IF(Selbstdeklaration!$F$75=B140,F140*Selbstdeklaration!$F$76/10,0) -> 0.00 | B140: 111500 | C140: 394.99 | D140: 0.3542% | F140: 125.01 | H140: 125.00 | I140: 187.50 | J140: 250.00 | K140: 312.50 | L140: 375.00 | M140: 437.50 | N140: 500.00 | O140: 562.60 | P140: 625.10
A141: =IF(Selbstdeklaration!$F$75=B141,F141*Selbstdeklaration!$F$76/10,0) -> 0.00 | B141: 112000 | C141: 397.50 | D141: 0.3549% | F141: 122.50 | H141: 122.50 | I141: 183.80 | J141: 245.00 | K141: 306.30 | L141: 367.50 | M141: 428.80 | N141: 490.00 | O141: 551.30 | P141: 612.50
A142: =IF(Selbstdeklaration!$F$75=B142,F142*Selbstdeklaration!$F$76/10,0) -> 0.00 | B142: 112500 | C142: 400.01 | D142: 0.3556% | F142: 119.99 | H142: 120.00 | I142: 180.00 | J142: 240.00 | K142: 300.00 | L142: 360.00 | M142: 420.00 | N142: 479.90 | O142: 539.90 | P142: 599.90
A143: =IF(Selbstdeklaration!$F$75=B143,F143*Selbstdeklaration!$F$76/10,0) -> 0.00 | B143: 113000 | C143: 402.53 | D143: 0.3562% | F143: 117.47 | H143: 117.50 | I143: 176.20 | J143: 234.90 | K143: 293.70 | L143: 352.40 | M143: 411.10 | N143: 469.90 | O143: 528.60 | P143: 587.30
A144: =IF(Selbstdeklaration!$F$75=B144,F144*Selbstdeklaration!$F$76/10,0) -> 0.00 | B144: 113500 | C144: 405.06 | D144: 0.3569% | F144: 114.94 | H144: 114.90 | I144: 172.40 | J144: 229.90 | K144: 287.30 | L144: 344.80 | M144: 402.30 | N144: 459.70 | O144: 517.20 | P144: 574.70
A145: =IF(Selbstdeklaration!$F$75=B145,F145*Selbstdeklaration!$F$76/10,0) -> 0.00 | B145: 114000 | C145: 407.60 | D145: 0.3575% | F145: 112.40 | H145: 112.40 | I145: 168.60 | J145: 224.80 | K145: 281.00 | L145: 337.20 | M145: 393.40 | N145: 449.60 | O145: 505.80 | P145: 562.00
A146: =IF(Selbstdeklaration!$F$75=B146,F146*Selbstdeklaration!$F$76/10,0) -> 0.00 | B146: 114500 | C146: 410.14 | D146: 0.3582% | F146: 109.86 | H146: 109.90 | I146: 164.80 | J146: 219.70 | K146: 274.70 | L146: 329.60 | M146: 384.50 | N146: 439.40 | O146: 494.40 | P146: 549.30
A147: =IF(Selbstdeklaration!$F$75=B147,F147*Selbstdeklaration!$F$76/10,0) -> 0.00 | B147: 115000 | C147: 412.69 | D147: 0.3589% | F147: 107.31 | H147: 107.30 | I147: 161.00 | J147: 214.60 | K147: 268.30 | L147: 321.90 | M147: 375.60 | N147: 429.20 | O147: 482.90 | P147: 536.60
A148: =IF(Selbstdeklaration!$F$75=B148,F148*Selbstdeklaration!$F$76/10,0) -> 0.00 | B148: 115500 | C148: 415.24 | D148: 0.3595% | F148: 104.76 | H148: 104.80 | I148: 157.10 | J148: 209.50 | K148: 261.90 | L148: 314.30 | M148: 366.60 | N148: 419.00 | O148: 471.40 | P148: 523.80
A149: =IF(Selbstdeklaration!$F$75=B149,F149*Selbstdeklaration!$F$76/10,0) -> 0.00 | B149: 116000 | C149: 417.80 | D149: 0.3602% | F149: 102.20 | H149: 102.20 | I149: 153.30 | J149: 204.40 | K149: 255.50 | L149: 306.60 | M149: 357.70 | N149: 408.80 | O149: 459.90 | P149: 511.00
A150: =IF(Selbstdeklaration!$F$75=B150,F150*Selbstdeklaration!$F$76/10,0) -> 0.00 | B150: 116500 | C150: 420.37 | D150: 0.3608% | F150: 99.63 | H150: 99.60 | I150: 149.40 | J150: 199.30 | K150: 249.10 | L150: 298.90 | M150: 348.70 | N150: 398.50 | O150: 448.30 | P150: 498.10
A151: =IF(Selbstdeklaration!$F$75=B151,F151*Selbstdeklaration!$F$76/10,0) -> 0.00 | B151: 117000 | C151: 422.95 | D151: 0.3615% | F151: 97.05 | H151: 97.10 | I151: 145.60 | J151: 194.10 | K151: 242.60 | L151: 291.20 | M151: 339.70 | N151: 388.20 | O151: 436.70 | P151: 485.30
A152: =IF(Selbstdeklaration!$F$75=B152,F152*Selbstdeklaration!$F$76/10,0) -> 0.00 | B152: 117500 | C152: 425.53 | D152: 0.3622% | F152: 94.47 | H152: 94.50 | I152: 141.70 | J152: 188.90 | K152: 236.20 | L152: 283.40 | M152: 330.70 | N152: 377.90 | O152: 425.10 | P152: 472.40
A153: =IF(Selbstdeklaration!$F$75=B153,F153*Selbstdeklaration!$F$76/10,0) -> 0.00 | B153: 118000 | C153: 428.12 | D153: 0.3628% | F153: 91.88 | H153: 91.90 | I153: 137.80 | J153: 183.80 | K153: 229.70 | L153: 275.70 | M153: 321.60 | N153: 367.50 | O153: 413.50 | P153: 459.40
A154: =IF(Selbstdeklaration!$F$75=B154,F154*Selbstdeklaration!$F$76/10,0) -> 0.00 | B154: 118500 | C154: 430.71 | D154: 0.3635% | F154: 89.29 | H154: 89.30 | I154: 133.90 | J154: 178.60 | K154: 223.20 | L154: 267.90 | M154: 312.50 | N154: 357.20 | O154: 401.80 | P154: 446.40
A155: =IF(Selbstdeklaration!$F$75=B155,F155*Selbstdeklaration!$F$76/10,0) -> 0.00 | B155: 119000 | C155: 433.31 | D155: 0.3641% | F155: 86.69 | H155: 86.70 | I155: 130.00 | J155: 173.40 | K155: 216.70 | L155: 260.10 | M155: 303.40 | N155: 346.80 | O155: 390.10 | P155: 433.40
A156: =IF(Selbstdeklaration!$F$75=B156,F156*Selbstdeklaration!$F$76/10,0) -> 0.00 | B156: 119500 | C156: 435.92 | D156: 0.3648% | F156: 84.08 | H156: 84.10 | I156: 126.10 | J156: 168.20 | K156: 210.20 | L156: 252.20 | M156: 294.30 | N156: 336.30 | O156: 378.40 | P156: 420.40
A157: =IF(Selbstdeklaration!$F$75=B157,F157*Selbstdeklaration!$F$76/10,0) -> 0.00 | B157: 120000 | C157: 438.53 | D157: 0.3654% | F157: 81.47 | H157: 81.50 | I157: 122.20 | J157: 162.90 | K157: 203.70 | L157: 244.40 | M157: 285.10 | N157: 325.90 | O157: 366.60 | P157: 407.30
A158: =IF(Selbstdeklaration!$F$75=B158,F158*Selbstdeklaration!$F$76/10,0) -> 0.00 | B158: 120500 | C158: 441.15 | D158: 0.3661% | F158: 78.85 | H158: 78.80 | I158: 118.30 | J158: 157.70 | K158: 197.10 | L158: 236.50 | M158: 276.00 | N158: 315.40 | O158: 354.80 | P158: 394.20
A159: =IF(Selbstdeklaration!$F$75=B159,F159*Selbstdeklaration!$F$76/10,0) -> 0.00 | B159: 121000 | C159: 443.78 | D159: 0.3668% | F159: 76.22 | H159: 76.20 | I159: 114.30 | J159: 152.40 | K159: 190.50 | L159: 228.70 | M159: 266.80 | N159: 304.90 | O159: 343.00 | P159: 381.10
A160: =IF(Selbstdeklaration!$F$75=B160,F160*Selbstdeklaration!$F$76/10,0) -> 0.00 | B160: 121500 | C160: 446.42 | D160: 0.3674% | F160: 73.58 | H160: 73.60 | I160: 110.40 | J160: 147.20 | K160: 184.00 | L160: 220.80 | M160: 257.50 | N160: 294.30 | O160: 331.10 | P160: 367.90
A161: =IF(Selbstdeklaration!$F$75=B161,F161*Selbstdeklaration!$F$76/10,0) -> 0.00 | B161: 122000 | C161: 449.06 | D161: 0.3681% | F161: 70.94 | H161: 70.90 | I161: 106.40 | J161: 141.90 | K161: 177.40 | L161: 212.80 | M161: 248.30 | N161: 283.80 | O161: 319.20 | P161: 354.70
A162: =IF(Selbstdeklaration!$F$75=B162,F162*Selbstdeklaration!$F$76/10,0) -> 0.00 | B162: 122500 | C162: 451.70 | D162: 0.3687% | F162: 68.30 | H162: 68.30 | I162: 102.40 | J162: 136.60 | K162: 170.70 | L162: 204.90 | M162: 239.00 | N162: 273.20 | O162: 307.30 | P162: 341.50
A163: =IF(Selbstdeklaration!$F$75=B163,F163*Selbstdeklaration!$F$76/10,0) -> 0.00 | B163: 123000 | C163: 454.36 | D163: 0.3694% | F163: 65.64 | H163: 65.60 | I163: 98.50 | J163: 131.30 | K163: 164.10 | L163: 196.90 | M163: 229.80 | N163: 262.60 | O163: 295.40 | P163: 328.20
A164: =IF(Selbstdeklaration!$F$75=B164,F164*Selbstdeklaration!$F$76/10,0) -> 0.00 | B164: 123500 | C164: 457.02 | D164: 0.3701% | F164: 62.98 | H164: 63.00 | I164: 94.50 | J164: 126.00 | K164: 157.50 | L164: 188.90 | M164: 220.40 | N164: 251.90 | O164: 283.40 | P164: 314.90
A165: =IF(Selbstdeklaration!$F$75=B165,F165*Selbstdeklaration!$F$76/10,0) -> 0.00 | B165: 124000 | C165: 459.68 | D165: 0.3707% | F165: 60.32 | H165: 60.30 | I165: 90.50 | J165: 120.60 | K165: 150.80 | L165: 180.90 | M165: 211.10 | N165: 241.30 | O165: 271.40 | P165: 301.60
A166: =IF(Selbstdeklaration!$F$75=B166,F166*Selbstdeklaration!$F$76/10,0) -> 0.00 | B166: 124500 | C166: 462.36 | D166: 0.3714% | F166: 57.64 | H166: 57.60 | I166: 86.50 | J166: 115.30 | K166: 144.10 | L166: 172.90 | M166: 201.80 | N166: 230.60 | O166: 259.40 | P166: 288.20
A167: =IF(Selbstdeklaration!$F$75=B167,F167*Selbstdeklaration!$F$76/10,0) -> 0.00 | B167: 125000 | C167: 465.04 | D167: 0.3720% | F167: 54.96 | H167: 0.00 | I167: 82.40 | J167: 109.90 | K167: 137.40 | L167: 164.90 | M167: 192.40 | N167: 219.90 | O167: 247.30 | P167: 274.80
A168: =IF(Selbstdeklaration!$F$75=B168,F168*Selbstdeklaration!$F$76/10,0) -> 0.00 | B168: 125500 | C168: 467.72 | D168: 0.3727% | F168: 52.28 | H168: 52.30 | I168: 78.40 | J168: 104.60 | K168: 130.70 | L168: 156.80 | M168: 183.00 | N168: 209.10 | O168: 235.20 | P168: 261.40
A169: =IF(Selbstdeklaration!$F$75=B169,F169*Selbstdeklaration!$F$76/10,0) -> 0.00 | B169: 126000 | C169: 470.42 | D169: 0.3733% | F169: 49.58 | H169: 49.60 | I169: 74.40 | J169: 99.20 | K169: 124.00 | L169: 148.70 | M169: 173.50 | N169: 198.30 | O169: 223.10 | P169: 247.90
A170: =IF(Selbstdeklaration!$F$75=B170,F170*Selbstdeklaration!$F$76/10,0) -> 0.00 | B170: 126500 | C170: 473.12 | D170: 0.3740% | F170: 46.88 | H170: 46.90 | I170: 70.30 | J170: 93.80 | K170: 117.20 | L170: 140.70 | M170: 164.10 | N170: 187.50 | O170: 211.00 | P170: 234.40
A171: =IF(Selbstdeklaration!$F$75=B171,F171*Selbstdeklaration!$F$76/10,0) -> 0.00 | B171: 127000 | C171: 475.82 | D171: 0.3747% | F171: 44.18 | H171: 44.20 | I171: 66.30 | J171: 88.40 | K171: 110.40 | L171: 132.50 | M171: 154.60 | N171: 176.70 | O171: 198.80 | P171: 220.90
A172: =IF(Selbstdeklaration!$F$75=B172,F172*Selbstdeklaration!$F$76/10,0) -> 0.00 | B172: 127500 | C172: 478.54 | D172: 0.3753% | F172: 41.46 | H172: 41.50 | I172: 62.20 | J172: 82.90 | K172: 103.70 | L172: 124.40 | M172: 145.10 | N172: 165.90 | O172: 186.60 | P172: 207.30
A173: =IF(Selbstdeklaration!$F$75=B173,F173*Selbstdeklaration!$F$76/10,0) -> 0.00 | B173: 128000 | C173: 481.26 | D173: 0.3760% | F173: 38.74 | H173: 38.70 | I173: 58.10 | J173: 77.50 | K173: 96.90 | L173: 116.20 | M173: 135.60 | N173: 155.00 | O173: 174.40 | P173: 193.70
A174: =IF(Selbstdeklaration!$F$75=B174,F174*Selbstdeklaration!$F$76/10,0) -> 0.00 | B174: 128500 | C174: 483.98 | D174: 0.3766% | F174: 36.02 | H174: 36.00 | I174: 54.00 | J174: 72.00 | K174: 90.00 | L174: 108.10 | M174: 126.10 | N174: 144.10 | O174: 162.10 | P174: 180.10
A175: =IF(Selbstdeklaration!$F$75=B175,F175*Selbstdeklaration!$F$76/10,0) -> 0.00 | B175: 129000 | C175: 486.71 | D175: 0.3773% | F175: 33.29 | H175: 33.30 | I175: 49.90 | J175: 66.60 | K175: 83.20 | L175: 99.90 | M175: 116.50 | N175: 133.10 | O175: 149.80 | P175: 166.40
A176: =IF(Selbstdeklaration!$F$75=B176,F176*Selbstdeklaration!$F$76/10,0) -> 0.00 | B176: 129500 | C176: 489.45 | D176: 0.3780% | F176: 30.55 | H176: 30.50 | I176: 45.80 | J176: 61.10 | K176: 76.40 | L176: 91.60 | M176: 106.90 | N176: 122.20 | O176: 137.50 | P176: 152.70
A177: =IF(Selbstdeklaration!$F$75=B177,F177*Selbstdeklaration!$F$76/10,0) -> 0.00 | B177: 130000 | C177: 492.20 | D177: 0.3786% | F177: 27.80 | H177: 0.00 | I177: 0.00 | J177: 0.00 | K177: 0.00 | L177: 0.00 | M177: 0.00 | N177: 111.20 | O177: 125.10 | P177: 139.00
A178: =IF(Selbstdeklaration!$F$75=B178,F178*Selbstdeklaration!$F$76/10,0) -> 0.00 | B178: 130500 | C178: 494.95 | D178: 0.3793% | F178: 25.05 | H178: 25.00 | I178: 37.60 | J178: 50.10 | K178: 62.60 | L178: 75.10 | M178: 87.70 | N178: 100.20 | O178: 112.70 | P178: 125.20
A179: =IF(Selbstdeklaration!$F$75=B179,F179*Selbstdeklaration!$F$76/10,0) -> 0.00 | B179: 131000 | C179: 497.71 | D179: 0.3799% | F179: 22.29 | H179: 22.30 | I179: 33.40 | J179: 44.60 | K179: 55.70 | L179: 66.90 | M179: 78.00 | N179: 89.20 | O179: 100.30 | P179: 111.40
A180: =IF(Selbstdeklaration!$F$75=B180,F180*Selbstdeklaration!$F$76/10,0) -> 0.00 | B180: 131500 | C180: 500.48 | D180: 0.3806% | F180: 19.52 | H180: 19.50 | I180: 29.30 | J180: 39.00 | K180: 48.80 | L180: 58.60 | M180: 68.30 | N180: 78.10 | O180: 87.90 | P180: 97.60
A181: =IF(Selbstdeklaration!$F$75=B181,F181*Selbstdeklaration!$F$76/10,0) -> 0.00 | B181: 132000 | C181: 503.25 | D181: 0.3812% | F181: 16.75 | H181: 16.80 | I181: 25.10 | J181: 33.50 | K181: 41.90 | L181: 50.30 | M181: 58.60 | N181: 67.00 | O181: 75.40 | P181: 83.80
A182: =IF(Selbstdeklaration!$F$75=B182,F182*Selbstdeklaration!$F$76/10,0) -> 0.00 | B182: 132500 | C182: 506.03 | D182: 0.3819% | F182: 13.97 | H182: 14.00 | I182: 21.00 | J182: 27.90 | K182: 34.90 | L182: 41.90 | M182: 48.90 | N182: 55.90 | O182: 62.90 | P182: 69.90
A183: =IF(Selbstdeklaration!$F$75=B183,F183*Selbstdeklaration!$F$76/10,0) -> 0.00 | B183: 133000 | C183: 508.81 | D183: 0.3826% | F183: 11.19 | H183: 11.20 | I183: 16.80 | J183: 22.40 | K183: 28.00 | L183: 33.60 | M183: 39.20 | N183: 44.70 | O183: 50.30 | P183: 55.90
A184: =IF(Selbstdeklaration!$F$75=B184,F184*Selbstdeklaration!$F$76/10,0) -> 0.00 | B184: 133500 | C184: 511.60 | D184: 0.3832% | F184: 0.00 | H184: 8.40 | I184: 12.60 | J184: 16.80 | K184: 21.00 | L184: 25.20 | M184: 29.40 | N184: 33.60 | O184: 37.80 | P184: 42.00
A185: =IF(Selbstdeklaration!$F$75=B185,F185*Selbstdeklaration!$F$76/10,0) -> 0.00 | B185: 134000 | C185: 514.40 | D185: 0.3839% | F185: 0.00 | H185: 5.60 | I185: 8.40 | J185: 11.20 | K185: 14.00 | L185: 16.80 | M185: 19.60 | N185: 22.40 | O185: 25.20 | P185: 28.00
A186: =IF(Selbstdeklaration!$F$75=B186,F186*Selbstdeklaration!$F$76/10,0) -> 0.00 | B186: 134500 | C186: 517.21 | D186: 0.3845% | F186: 0.00 | H186: 2.80 | I186: 4.20 | J186: 5.60 | K186: 7.00 | L186: 8.40 | M186: 9.80 | N186: 11.20 | O186: 12.60 | P186: 14.00
A187: =IF(Selbstdeklaration!$F$75=B187,F187*Selbstdeklaration!$F$76/10,0) -> 0.00 | B187: 135000 | C187: 520.02 | D187: 0.3852% | F187: 0.00 | H187: 0.00 | I187: 0.00 | J187: 0.00 | K187: 0.00 | L187: 0.00 | M187: 0.00 | N187: 0.00 | O187: 0.00 | P187: 0.00
A190: =SUM(A8:A187) -> 0.00
